Cogmind - Beta 17 @@@ ROGUE MODE // 2026.08.07 @ 23:11:10 Player: Alicianrone Result: Escaped! Performance ------------- Evolutions (9) 4500 Regions Visited (35) 7000 Robots Destroyed (467) 2335 Value Destroyed (19070) 19070 Prototype IDs (131) 2620 Alien Tech Used (2) 400 Bonus (17072) 17072 TOTAL SCORE: 52997 Bonus ------- Triggered High Security 1000 High Alert Combat Kills 5062 Follower Combat Kills 4076 Aligned with FarCom 300 Met Data Miner 300 Met Imprinter 300 Was Imprinted 300 Met Zhirov 300 Met Warlord at Base 500 MAIN.C Attacked Warlord 500 Warlord Defense Kills 2162 Win 3000 Friendly Fire -728 Cogmind --------- Core Integrity 1300/1600 Matter 143/300 Energy 1648/1650 System Corruption 0% Temperature Cool (4) Movement Flying (31) Location To Epsilon Eridani Parts ------- > --- POWER (2) -------- Micro Antimatter Reactor > --- PROPULSION (8) --- Field Propulsion Array Field Propulsion Array Field Propulsion Array Field Propulsion Array > --- UTILITY (13) ----- Experimental Coolant Injector Superbattery Long-range Sensor Array Long-range Sensor Array Advanced Signal Interpreter Advanced Terrain Scan Processor Advanced Launcher Guidance Computer Weapon Mount Experimental Core Analyzer Improved Propulsion Shielding Hacking Suite > --- WEAPON (2) ------- Null Cannon Vortex Lance > --- INVENTORY (5) ---- Impulse Thruster Advanced Trap Extractor (7/8 Fire) Advanced Trap Extractor (6/8 Dirty Bomb) Thermoblaster Peak State ------------ > --- POWER ------------ Graviton Reactor Graviton Reactor > --- PROPULSION ------- Antigrav Array Antigrav Array Combat Linear Gravjet Combat Linear Gravjet Combat Linear Gravjet Combat Linear Gravjet > --- UTILITY ---------- Advanced Heat Sink Large Storage Unit Experimental Sensor Array Advanced Signal Interpreter Advanced Launcher Guidance Computer Advanced Cloaking Device Zionite Weapon Casing SHELL Armor System Mapper > --- WEAPON ----------- Cooled Nova Cannon Vortex Lance > --- INVENTORY -------- Advanced Cryofiber Web Experimental Coolant Injector Superbattery Experimental Core Analyzer Zionite Weapon Casing Experimental Focal Shield Advanced Thermal Shield Advanced Trap Extractor Advanced Trap Extractor Transdimensional Reconstructor Null Cannon Thermoblaster Thermoblaster Field Lobotomy Kit Experimental Plasma Cutter [Rating: 202] Favorites ----------- Power Micro Fission Core Engine F-cell Engine Power Core Micro Fission Core Reactor Light Antimatter Reactor Propulsion Cooled Gravmag System Treads Light Treads Leg Advanced Myomer Leg Wheel Wheel Hover Unit Cooled Gravmag System Flight Unit Cesium-ion Thruster Utility Large Storage Unit Device Improved Sensor Array Storage Large Storage Unit Processor Enhanced Optical Array Hackware Advanced Hacking Suite Protection Improved Medium Armor Plating Weapon Cooled Plasma Cannon Energy Gun Heavy EM Pulse Gun Energy Cannon Cooled Plasma Cannon Ballistic Gun Shotgun Ballistic Cannon Hypervelocity Mass Driver Launcher Thermoblaster Special Weapon Experimental Plasma Cutter Impact Weapon Impact Mace Slashing Weapon Scythe Piercing Weapon Vortex Lance Special Melee Weapon Improved Datajack Build | -11 -10 -10 -10 -9 -8 -7 -7 -7 -7 -7 -7 -6 -6 -6 -6 -6 -6 -6 -5 -5 -5 -5 -5 -5 -5 -4 -4 -4 -4 -4 -3 -3 -3 -2 -1 ------- Run | Yrd Mat Min Exi Min Mat Fac Was Fac Low Low Dat Pro Fac Was Fac Low Low Zio Pro Fac Was Fac Upp Upp Zhi Pro Fac Upp Upp War Pro Res Tes Res Acc Slots Evolved 18 | . . . . . 4 2 . . . . . . 2 . . . . . . 2 . . . . . . 2 . . . . 2 . 2 2 Power 1 | . . . . . . . . . . . . . . . . . . . . 1 . . . . . . . . . . . . . . . Propulsion 6 | . . . . . 1 2 . . . . . . 1 . . . . . . . . . . . . . 1 . . . . . . 1 . Utility 11 | . . . . . 3 . . . . . . . 1 . . . . . . 1 . . . . . . 1 . . . . 2 . 1 2 Weapon . | . . . . . . . . . . . . . . . . . . . . . . . . . . . . . . . . . . . . Parts Attached 338 | 7 12 1 2 . 25 20 7 10 2 3 . 1 11 2 23 3 1 . . 15 1 24 6 3 7 6 11 6 4 27 6 15 17 27 33 Power 38 | 1 1 . 1 . 1 3 . 1 . 1 . . 1 . 1 . . . . . . 4 . . 1 . 2 2 . 3 2 4 2 3 4 Engine 8 | 1 1 . . . 1 2 . . . . . . . . 1 . . . . . . 1 . . . . . . . . . . . . 1 Core 12 | . . . 1 . . 1 . 1 . 1 . . 1 . . . . . . . . 3 . . . . 2 1 . 1 . . . . . Reactor 18 | . . . . . . . . . . . . . . . . . . . . . . . . . 1 . . 1 . 2 2 4 2 3 3 Propulsion 87 | 2 5 . 1 . 7 5 5 3 . . . . 6 . 7 1 . . . 7 . 3 1 1 1 . . 1 . 4 . 3 2 10 12 Treads 12 | . 4 . 1 . 5 1 . . . . . . . . . . . . . . . . . . . . . . . . . . . . 1 Leg 1 | . . . . . . . . . . . . . . . . . . . . . . . . . 1 . . . . . . . . . . Wheel 11 | 2 1 . . . 2 4 . . . . . . . . . . . . . . . . . . . . . . . . . . . . 2 Hover 43 | . . . . . . . . . . . . . 6 . 7 1 . . . 7 . 3 1 1 . . . 1 . 4 . 3 2 7 . Flight 20 | . . . . . . . 5 3 . . . . . . . . . . . . . . . . . . . . . . . . . 3 9 Utility 156 | 2 3 . . . 8 9 2 5 1 2 . 1 4 2 9 2 . . . 6 . 14 2 2 5 6 6 2 4 14 2 8 6 14 15 Device 72 | 1 . . . . 1 4 2 1 1 . . 1 1 2 3 2 . . . 4 . 5 2 1 3 3 6 1 1 4 2 3 4 7 7 Storage 8 | 1 1 . . . . . . . . . . . 1 . 2 . . . . . . . . . 1 . . . . . . . . 1 1 Processor 21 | . . . . . 2 2 . . . 1 . . 1 . 2 . . . . . . 1 . 1 . . . . 2 4 . 1 . 2 2 Hackware 16 | . . . . . . 1 . 3 . 1 . . . . 1 . . . . 1 . 5 . . . . . . . 1 . . 1 1 1 Protection 39 | . 2 . . . 5 2 . 1 . . . . 1 . 1 . . . . 1 . 3 . . 1 3 . 1 1 5 . 4 1 3 4 Artifact . | . . . . . . . . . . . . . . . . . . . . . . . . . . . . . . . . . . . . Weapon 57 | 2 3 1 . . 9 3 . 1 1 . . . . . 6 . 1 . . 2 1 3 3 . . . 3 1 . 6 2 . 7 . 2 Energy Gun 10 | 1 2 . . . . . . 1 . . . . . . . . . . . . . . 1 . . . . . . 1 1 . 2 . 1 Energy Cannon 9 | . . . . . . 1 . . . . . . . . 4 . . . . . . . . . . . . . . 1 . . 3 . . Ballistic Gun 9 | 1 1 . . . 5 1 . . . . . . . . . . . . . 1 . . . . . . . . . . . . . . . Ballistic Cannon 4 | . . . . . . . . . . . . . . . . . . . . . 1 . . . . . 1 1 . . . . 1 . . Launcher 11 | . . 1 . . 3 . . . . . . . . . 1 . . . . . . 1 1 . . . . . . 2 . . 1 . 1 Special Weapon 3 | . . . . . . . . . . . . . . . . . . . . 1 . . 1 . . . . . . . 1 . . . . Impact Weapon 3 | . . . . . 1 . . . . . . . . . 1 . . . . . . 1 . . . . . . . . . . . . . Slashing Weapon 4 | . . . . . . . . . 1 . . . . . . . 1 . . . . 1 . . . . 1 . . . . . . . . Piercing Weapon 2 | . . . . . . . . . . . . . . . . . . . . . . . . . . . . . . 2 . . . . . Special Melee Weapon 2 | . . . . . . 1 . . . . . . . . . . . . . . . . . . . . 1 . . . . . . . . Unidentified Prototypes 62 | . . . . . 3 1 . 3 . . . . 1 . 3 . . . . 2 . 1 1 . 7 1 1 . . 15 3 . 10 9 1 Parts Lost 59 | . 2 . . . 2 3 . . . . . . . . . . 1 . . 1 . 6 1 1 . 1 3 3 . 1 1 4 1 16 12 Power 12 | . 1 . . . . 1 . . . . . . . . . . . . . . . 2 . . . . . 2 . . . 1 . 2 3 Propulsion 19 | . . . . . . 1 . . . . . . . . . . 1 . . . . 1 1 1 . . . . . 1 . 1 1 8 3 Utility 26 | . 1 . . . 2 1 . . . . . . . . . . . . . 1 . 2 . . . 1 3 1 . . 1 2 . 6 5 Weapon 2 | . . . . . . . . . . . . . . . . . . . . . . 1 . . . . . . . . . . . . 1 Highest Loss Streak 12 | . 1 . . . 1 1 . . . . . . . . . . 1 . . 1 . 4 1 1 . 1 2 2 . 1 1 2 1 12 4 To Critical Strikes . | . . . . . . . . . . . . . . . . . . . . . . . . . . . . . . . . . . . . Average Backups 13 | 1 11 16 19 18 18 18 7 3 4 4 4 3 7 9 14 14 14 15 15 14 14 14 12 13 14 14 14 12 14 14 14 14 14 14 7 Power 1 | . . 1 2 3 3 2 . . 1 . . . . 1 2 2 2 2 2 1 1 1 1 1 1 . . . . . . . . . . Propulsion 1 | 1 5 6 5 5 3 2 1 . . . . . . . . 1 1 1 1 2 3 2 1 1 1 1 . . . . . . . . . Utility 7 | . 2 5 5 5 6 8 3 1 1 1 2 2 4 5 6 7 8 9 9 8 8 8 7 7 8 9 8 6 9 9 9 9 8 7 2 Weapon 2 | . 2 4 5 4 4 3 1 . 1 1 1 . 1 2 3 1 2 2 2 1 1 1 1 1 1 1 1 1 1 1 2 2 2 3 2 Tool/Special . | . . . . . . . . . . . . . . . . . . . . . . . . . . . . . . . . . . . . Unused Backups 42 | . 3 . 3 1 4 6 4 1 . . . 1 4 . 1 . . . . 1 2 2 1 . 1 . . . 3 2 . . 1 . 1 Power 6 | . . . . . . 3 . . . . . . 2 . 1 . . . . . . . . . . . . . . . . . . . . Propulsion 5 | . 1 . . . 2 . . . . . . . . . . . . . . . 1 . . . . . . . . . . . . . 1 Utility 21 | . 1 . 1 . 2 2 4 . . . . 1 2 . . . . . . 1 . 2 1 . . . . . 2 1 . . 1 . . Weapon 8 | . 1 . 2 1 . 1 . 1 . . . . . . . . . . . . 1 . . . . . . . 1 . . . . . . Tool/Special 2 | . . . . . . . . . . . . . . . . . . . . . . . . . 1 . . . . 1 . . . . . Average Slot Usage (%) 89 | . 98 100 100 100 98 85 93 98 96 98 97 99 98 98 88 87 91 86 86 92 92 91 93 87 83 83 87 84 84 85 88 88 78 78 58 Engine 2 | . 13 14 . . 3 5 2 . . . . . . . 5 6 6 6 6 5 4 3 . . . . . . . . . . . . . Core 3 | . . . 13 14 5 1 5 7 7 7 7 7 6 6 . . . . . 5 5 5 11 11 6 5 5 7 5 3 1 . . . . Reactor 1 | . . . . . . . . . . . . . . . . . . . . . . . . . 3 5 4 2 5 5 8 8 8 7 1 Treads 2 | . 10 14 14 14 18 7 1 . . . . . . . . . . . . . . . . . . . . . . . . . . . . Wheel 2 | . 17 14 14 14 9 17 1 . . . . . . . . . . . . . . . . . . . . . . . . . . . 3 Hover 19 | . . . . . . . . . . . . . 35 40 28 27 31 26 26 28 29 29 29 23 22 23 26 26 26 26 31 28 27 26 . Flight 3 | . . . . . . . 29 38 38 38 38 38 3 . . . . . . . . . . . . . . . . . . . . 1 8 Device 10 | . 11 13 14 14 7 7 12 12 7 7 7 7 5 9 6 8 7 6 6 10 11 8 8 9 7 8 13 21 10 8 12 18 14 13 11 Storage 5 | . 14 14 14 14 9 7 3 . . . . . 4 6 6 6 6 6 6 5 5 5 5 5 5 5 5 5 5 5 5 4 4 4 4 Processor 9 | . . . . . 12 14 15 11 7 11 15 15 18 7 10 13 13 13 13 11 11 11 11 15 15 11 6 5 9 13 10 9 4 5 13 Hackware 4 | . . . . . . 5 . 4 11 9 7 7 6 6 6 6 6 6 6 5 5 6 5 5 5 5 5 5 5 6 . . . 4 4 Protection 5 | . 2 . . . 14 1 6 7 7 7 7 6 2 6 7 3 4 6 5 4 5 5 7 2 1 5 8 1 5 5 7 8 8 7 5 Energy Gun 1 | . 14 13 14 14 4 . . . . . . . . . . . . . . . . . . . . . . . . . . . . . . Energy Cannon 3 | . . . . . . . 7 6 7 7 4 6 5 6 6 6 5 6 5 4 2 4 4 5 3 4 4 3 5 . . . . 1 1 Ballistic Gun 2 | . 14 14 14 14 13 7 . . . . . . . . . . . . . . . . . . . . . . . . . . . . . Impact Weapon 2 | . . . . . . 5 7 6 6 7 7 6 5 6 5 4 . 6 6 5 5 4 4 5 4 2 1 . . . . . . . . Peak Build Rating 202 | 7 11 11 17 17 32 59 51 59 56 57 57 63 66 59 85 87 87 82 84 102 101 105 103 95 103 102 116 113 108 151 152 176 195 202 162 Average Rating 87 | 5 9 10 14 17 28 48 47 52 54 56 53 56 56 56 76 83 83 82 82 99 98 99 95 88 93 96 110 106 104 128 149 171 181 185 108 On Entrance 74 | . 7 11 11 17 17 31 54 48 56 53 57 57 57 56 59 83 87 82 82 82 101 95 98 95 91 98 94 108 101 108 147 152 173 170 44 Avg Prop Armor Cover (%) 9 | . 10 11 11 11 13 8 . . . . . . 3 . 5 . . . . . . . . . . . . . . . . . . 4 19 Naked Turns . | . . . . . . . . . . . . . . . . . . . . . . . . . . . . . . . . . . . . Heaviest Build 101 | 14 54 52 52 52 65 72 26 26 24 24 24 24 34 38 56 56 56 51 51 65 65 67 64 64 66 66 74 78 73 82 81 88 97 101 51 Greatest Support 116 | 20 40 10 10 10 12 56 35 28 28 28 28 28 57 57 66 62 74 62 62 66 66 83 83 76 66 66 77 79 79 88 88 111 100 116 60 Greatest Overweight (x) 5 | . 5 5 5 5 5 2 . . . . . . 1 . 1 . 1 . . 1 . 1 . . 1 . . . . 1 . . 1 1 2 Average Overweight (x) . | . 3 5 5 5 4 . . . . . . . . . . . . . . . . . . . . . . . . . . . . . . Largest Inventory Capacity 20 | 8 20 20 20 20 20 20 20 5 5 5 5 5 10 10 15 15 15 15 15 15 15 15 15 15 15 15 15 15 15 15 15 15 15 15 15 Average Capacity 14 | 7 17 20 20 20 20 20 8 5 5 5 5 5 9 10 14 15 15 15 15 15 15 15 15 15 15 15 15 15 15 15 15 15 15 15 9 Most Carried 20 | 3 18 18 20 20 20 20 20 5 5 5 5 5 10 10 15 15 15 15 15 15 15 15 15 15 15 15 15 15 15 15 15 15 15 15 14 Average Carried 14 | 2 11 16 19 19 19 19 7 4 5 4 5 4 8 10 14 14 14 15 15 14 14 14 13 14 14 14 14 12 14 14 14 14 14 14 7 Final Capacity 20 | 8 20 20 20 20 20 20 5 5 5 5 5 5 10 10 15 15 15 15 15 15 15 15 15 15 15 15 15 15 15 15 15 15 15 15 5 Final Carried 20 | 3 16 18 20 20 20 20 5 5 5 5 5 5 10 10 15 15 15 15 15 15 15 15 13 14 15 15 13 14 13 15 15 15 15 15 4 Class Distribution -------------------- 27% | Mutant 21% | Trapper-Scout 15% | Trapper-Mutant 10% | Scout 8% | Scavenger-Mutant 6% | Sprinter Dominant Class ---------------- Mutant | -10/Materials Mutant | -10/Mines Mutant | -10/Exiles Mutant | -9/Mines Mutant | -8/Materials Mutant | -7/Factory Sprinter | -7/Waste Sprinter | -7/Factory Hacker-Sprinter | -7/Lower Caves Sprinter | -7/Lower Caves Sprinter | -7/Data Miner Sprinter | -6/Proximity Caves Mutant | -6/Factory Mutant | -6/Waste Scout | -6/Factory Trapper-Scout | -6/Lower Caves Trapper-Scout | -6/Lower Caves Trapper-Scout | -6/Zion Trapper-Scout | -5/Proximity Caves Trapper-Scout | -5/Factory Trapper-Scout | -5/Waste Trapper-Scout | -5/Factory Trapper-Scout | -5/Upper Caves Scout | -5/Upper Caves Commander-Scout | -5/Zhirov Scout | -4/Proximity Caves Mutant | -4/Factory Scientist-Mutant | -4/Upper Caves Trapper-Mutant | -4/Upper Caves Trapper-Mutant | -4/Warlord Scavenger-Mutant | -3/Proximity Caves Trapper-Mutant | -3/Research Trapper-Mutant | -3/Testing Trapper-Mutant | -2/Research Trapper-Sprinter | -1/Access Resources | -11 -10 -10 -10 -9 -8 -7 -7 -7 -7 -7 -7 -6 -6 -6 -6 -6 -6 -6 -5 -5 -5 -5 -5 -5 -5 -4 -4 -4 -4 -4 -3 -3 -3 -2 -1 ----------- Run | Yrd Mat Min Exi Min Mat Fac Was Fac Low Low Dat Pro Fac Was Fac Low Low Zio Pro Fac Was Fac Upp Upp Zhi Pro Fac Upp Upp War Pro Res Tes Res Acc Matter Collected 10634 | 230 476 82 . 20 1293 468 . 438 35 37 . 111 220 40 524 159 160 . 185 302 13 906 392 136 79 290 259 833 280 493 419 435 457 539 323 Remotely . | . . . . . . . . . . . . . . . . . . . . . . . . . . . . . . . . . . . . Salvage Created 20134 | 68 791 49 . . 2312 765 . 1136 68 . . 176 648 123 1472 159 239 . 191 1015 190 1275 209 182 275 376 675 915 391 845 888 1526 1057 1556 562 Parts 758 | 8 49 7 . . 136 24 . 47 3 . . 6 10 1 44 7 3 . 10 23 2 49 6 2 15 7 24 28 25 36 11 66 29 62 18 Haulers Intercepted 36 | . 2 . . . 3 1 . 5 . . . . 2 . 6 . . . . 5 . 3 . . . 1 1 . . . 1 1 1 4 . Recyclers Shooed 9 | 1 . . . . 2 . . 2 . . . . . . . . . . . . . . . . . . . . . . . 3 1 . . Parts Field Recycled . | . . . . . . . . . . . . . . . . . . . . . . . . . . . . . . . . . . . . Retrieved Matter . | . . . . . . . . . . . . . . . . . . . . . . . . . . . . . . . . . . . . Parts Self-Destructed 116 | . . . . . . . . . 3 5 . 5 . . . 5 2 . 18 . . . 3 2 10 6 . 29 14 . 14 . . . . Prevented 32 | . . . . . . . . . . . . . . . . 1 5 . 16 . . . . 4 . . . . 6 . . . . . . Parts Restored . | . . . . . . . . . . . . . . . . . . . . . . . . . . . . . . . . . . . . Kills | -11 -10 -10 -10 -9 -8 -7 -7 -7 -7 -7 -7 -6 -6 -6 -6 -6 -6 -6 -5 -5 -5 -5 -5 -5 -5 -4 -4 -4 -4 -4 -3 -3 -3 -2 -1 ------- Run | Yrd Mat Min Exi Min Mat Fac Was Fac Low Low Dat Pro Fac Was Fac Low Low Zio Pro Fac Was Fac Upp Upp Zhi Pro Fac Upp Upp War Pro Res Tes Res Acc Combat Hostiles Destroyed 316 | . 17 3 . . 43 10 . 12 . . . 3 5 . 12 1 5 . 11 4 1 28 3 3 . 5 11 16 11 12 11 37 18 22 12 Melee 13 | . . . . . . 4 . . . . . . 1 . 3 . . . . 1 . . . . . . . . . . . . 1 1 2 Guns 56 | . 16 . . . 29 . . 7 . . . 3 1 . . . . . . . . . . . . . . . . . . . . . . Cannons 48 | . . . . . . 1 . . . . . . . . 4 . . . 2 2 1 3 1 1 . 2 8 11 2 6 1 . . 1 2 AOE 161 | . 1 3 . . 13 . . 2 . . . . . . 3 1 4 . 9 1 . 19 2 . . 3 3 5 7 6 9 34 14 18 4 Classes Destroyed 30 | 1 6 1 . . 5 2 . . 1 . . . . 1 . 1 . . 1 1 1 . . 2 . . 1 . . 2 2 . 2 . . Worker 26 | . . 1 . . 9 . . 1 . . . . 1 . 1 . . . . 2 . 3 . . . . . . . . . 3 . 3 2 Builder 14 | . 1 . . . 1 . . 1 . . . . . . 1 . . . . 1 . 2 . . . . 2 . . . . 3 1 1 . Tunneler 9 | 3 . . . . . 1 . . . . . . . . 3 . . . . . . . . . . . 2 . . . . . . . . Hauler 36 | . 2 . . . 3 1 . 5 . . . . 2 . 6 . . . . 5 . 3 . . . 1 1 . . . 1 1 1 4 . Recycler 9 | . 1 . . . . 3 . 3 . . . . . . 2 . . . . . . . . . . . . . . . . . . . . Minesweeper 10 | . . . . . . . . . 2 . . 1 . . . 3 . . 1 . . . . . . . . 1 2 . . . . . . Mechanic 1 | . . . . . . . . . . . . . . . . . . . . . . . . . . . . . . . 1 . . . . Operator 16 | . . . . . 2 2 . 2 . . . . 1 . 3 . . . . 2 . 3 . . . . . . . . . 1 . . . Drone 1 | . . . . . . . . . . . . . . . . . . . 1 . . . . . . . . . . . . . . . . Watcher 24 | . 1 . . . 2 . . 3 . . . . 3 . 4 . . . . 3 . 1 . . . . . . . . . 2 1 4 . Swarmer 97 | . 6 3 . . 6 . . 4 . . . 3 . . 5 . 4 . 9 . . 13 2 . . . . 2 8 . 2 20 . 6 4 Cutter 5 | . . . . . . . . . . . . . . . . . . . . . . . . . . . 4 . . . . . . 1 . Saboteur 1 | . . . . . . . . . . . . . . . . . . . . . . . . . . . . . . . . . 1 . . Grunt 100 | . 11 . . . 24 4 . 4 . . . . 2 . 3 . . . . 1 . 6 . . . 5 1 10 1 3 2 4 13 3 3 Brawler 8 | . . . . . 1 . . . . . . . . . . . . . . . . . . . . 1 . 1 . 1 1 . 2 . 1 Duelist 4 | . . . . . 1 . . . . . . . . . . . . . 1 . . . . . . . . . . 1 1 . . . . Protector 1 | . . . . . . . . . . . . . . . . . . . . . . . . . . . . . . . 1 . . . . Researcher 2 | . . . . . . . . . . . . . . . . . . . . . . . . . . . . . . . . . 2 . . Sentry 32 | . . . . . 9 2 . 2 . . . . 1 . 2 . 1 . . . . 3 1 . . . 2 2 . . 1 4 . 2 . Specialist 3 | . . . . . . 2 . . . . . . . . . . . . . . . . . . . . . . . 1 . . . . . Hunter 17 | . . . . . 2 1 . 2 . . . . 1 . 1 . . . . . . 3 . 1 . . . . . . . 2 . 4 . Programmer 34 | . . . . . . 1 . . . . . . 1 . 1 . . . . 3 . 3 . . . . 4 1 1 1 2 7 2 6 1 Behemoth 4 | . . . . . . . . . . . . . . . . . . . . . . . . 1 . . . . 1 . . . . . 2 Compactor 1 | . . . . . . . . . . . . . . . . . . . . . 1 . . . . . . . . . . . . . . Striker 2 | . . . . . . . . . . . . . . . . . . . . . . . . . . . . . . 1 . . . . 1 Executioner 5 | . . . . . . . . . . . . . . . . . . . . . . . . . . . . . . 4 1 . . . . Z-Courier 1 | . . . . . . . . . . . . . . . . . . . . 1 . . . . . . . . . . . . . . . Decomposer 2 | . . . . . . . . . . . . . . . . . . . . . . . . . . . . . 2 . . . . . . Packrat 4 | . . . . . . . . . . . . 1 . . . . 2 . . . . . 1 . . . . . . . . . . . . Samaritan 1 | . . . . . . . . . . . . . . . . . . . . . . . . 1 . . . . . . . . . . . Master Thief 2 | . . . . . . . . . . . . . . . . 1 . . . . . . . 1 . . . . . . . . . . . Martyr 2 | . . . . . . . . . . . . . . 2 . . . . . . . . . . . . . . . . . . . . . Mutant 1 | . . . . . . . . . . . . . . . . . . . . 1 . . . . . . . . . . . . . . . Best Kill Streak 13 | 2 6 3 . . 7 6 . 6 1 . . 3 3 . 4 1 4 . 5 3 1 13 3 1 . 5 3 7 5 5 4 11 9 5 6 Combat Bots Only 10 | . 5 3 . . 5 4 . 4 . . . 3 2 . 4 1 4 . 5 2 1 10 3 1 . 5 3 6 5 5 4 10 9 5 6 Max Kills in Single Turn 5 | 1 1 2 . . 5 1 . 3 1 . . 1 1 1 3 1 3 . 4 3 1 5 2 1 . 2 1 2 3 3 2 3 2 3 1 Gunslinging . | . . . . . . . . . . . . . . . . . . . . . . . . . . . . . . . . . . . . Exploded 5 | . 1 2 . . 3 . . 2 . . . . . . 3 1 3 . 4 1 . 5 2 . . 2 1 2 3 3 2 3 1 2 1 Melee 1 | . . . . . . 1 . . . . . . 1 . 1 . . . . 1 . . . . . . . . . . . . 1 1 1 Uniques/NPCs Destroyed . | . . . . . . . . . . . . . . . . . . . . . . . . . . . . . . . . . . . . Combat | -11 -10 -10 -10 -9 -8 -7 -7 -7 -7 -7 -7 -6 -6 -6 -6 -6 -6 -6 -5 -5 -5 -5 -5 -5 -5 -4 -4 -4 -4 -4 -3 -3 -3 -2 -1 -------- Run | Yrd Mat Min Exi Min Mat Fac Was Fac Low Low Dat Pro Fac Was Fac Low Low Zio Pro Fac Was Fac Upp Upp Zhi Pro Fac Upp Upp War Pro Res Tes Res Acc Hostile Shots Fired 1759 | . 58 7 . . 155 105 1 41 1 . . 5 19 . 98 1 16 . 13 6 . 127 12 39 . 15 63 61 16 12 63 211 88 368 158 Missed 736 | . 15 2 . . 44 38 1 20 1 . . 3 8 . 52 1 10 . 6 3 . 39 8 21 . 7 23 31 10 2 36 107 30 157 61 Hits 1023 | . 43 5 . . 111 67 . 21 . . . 2 11 . 46 . 6 . 7 3 . 88 4 18 . 8 40 30 6 10 27 104 58 211 97 Melee 20 | . . . . . . . . . . . . . . . . . . . . . . . . 1 . . 6 . . . . . 2 10 1 Projectile 1003 | . 43 5 . . 111 67 . 21 . . . 2 11 . 46 . 6 . 7 3 . 88 4 17 . 8 34 30 6 10 27 104 56 201 96 AOE 3 | . . . . . . . . . . . . . . . 1 . . . . 1 . . . . . . 1 . . . . . . . . Critical Strikes 51 | . . . . . 5 . . 1 . . . . . . . . . . . . . 5 . . . 1 5 3 . 2 1 8 5 11 4 Actively Blocked 4 | . . . . . . . . . . . . . . . . . . . . . . . . . . . 2 . . . . . . . 2 Part Disruptions 6 | . . . . . . . . . . . . . 1 . . . . . . . . 1 . . . . . . . . . 2 . 2 . Damage Taken 18914 | 39 489 36 . . 1590 568 . 224 . . . 27 148 . 606 69 102 . 132 240 . 1822 156 274 . 204 981 656 106 357 680 1687 1091 5023 1607 Core 2521 | . 81 8 . . 208 121 . 15 . . . 15 15 . 85 23 . . . 15 . 144 . 57 . 15 214 45 . 35 90 259 67 709 300 Absorbed by Shields 1264 | . . . . . 276 212 . . . . . . . . . . . . . . . . . . . . 141 . . 100 46 352 . . 137 Redirected to Shielding 1195 | . . . . . . . . . . . . . . . 9 . . . . . . . 14 24 . 9 148 . . 34 42 208 92 232 383 Ignored by Resistances 1087 | . . . . . . . . . . . . . . . . . . . . . . . . . . 12 85 . . . . 367 141 377 105 Regen/Repaired (Parts) 2248 | . . . . . . . . 18 . . . . . 63 187 . . . . . . . . . . . 203 . . 15 . 25 309 1428 . Core Remaining (%) 73 | 100 . . . 64 62 . . . . . . 78 . . . . . . 85 . . . . . . 76 . . . . 66 . 74 46 81 Volleys Fired 1132 | 17 61 3 . . 140 12 . 10 . . . 7 3 . 30 23 13 . 24 16 30 51 23 26 12 60 96 51 38 23 45 126 69 84 39 Largest 2 | 2 2 2 . . 2 2 . 1 . . . 1 1 . 2 2 1 . 1 1 1 1 1 1 1 1 1 2 1 1 1 1 1 1 2 Hottest 520 | 60 68 68 . . 68 90 . 90 . . . 90 90 . 210 148 105 . 43 105 51 105 105 105 16 105 105 105 105 260 260 260 260 260 520 Shots Fired 1379 | 34 122 4 . . 243 22 . 39 . . . 13 5 . 31 24 13 . 24 16 30 52 25 26 12 60 96 63 38 23 44 125 68 85 42 Gun 436 | 34 122 2 . . 224 20 . 26 . . . 6 2 . . . . . . . . . . . . . . . . . . . . . . Cannon 520 | . . . . . . 2 . 13 . . . 7 3 . 26 23 9 . 19 15 30 39 14 26 . 54 93 59 18 11 11 5 5 20 18 Launcher 376 | . . 2 . . 19 . . . . . . . . . 5 1 4 . 5 . . 13 2 . . 6 3 4 4 12 31 120 62 64 19 Special 47 | . . . . . . . . . . . . . . . . . . . . 1 . . 9 . 12 . . . 16 . 2 . 1 1 5 Kinetic 415 | 17 61 1 . . 183 20 . 26 . . . 6 2 . . . . . . . 30 . . . . . 7 34 . 11 11 5 1 . . Thermal 770 | . . . . . . 2 . 13 . . . 7 3 . 26 23 9 . 19 15 . 39 23 26 12 54 86 25 34 12 31 120 66 84 41 Explosive 64 | . . 2 . . 15 . . . . . . . . . 5 1 4 . 5 . . 13 2 . . 6 3 4 4 . . . . . . Electromagnetic 124 | 17 61 1 . . 45 . . . . . . . . . . . . . . . . . . . . . . . . . . . . . . Robot Hit Streak 26 | 7 11 1 . . 18 8 . 11 . . . 10 4 . 4 7 4 . 7 6 13 6 9 5 15 6 8 12 5 14 10 26 20 24 11 Robot Miss Streak 7 | 2 4 3 . . 4 3 . 3 . . . 1 1 . 2 4 2 . 3 7 2 6 1 1 . 2 3 2 4 1 1 2 1 2 1 Penetration Max 1 | . . . . . . . . . . . . . . . . . . . . . 1 . . . . . . 1 . 1 . . . . . Secondary Targets 4 | . . . . . 4 . . . . . . . . . . . . . . . . . . . . . . . . . . . . . . Max Gunslinging Chain 1 | . . . . . 1 . . . . . . . . . . . . . . . . . . . . . . . . . . . . . . Autonomous 34 | . . . . . . . . 26 . . . 6 2 . . . . . . . . . . . . . . . . . . . . . . Shots Hit Robots 963 | 24 73 2 . . 170 42 . 40 2 . . 10 16 3 44 18 5 . 15 26 24 51 13 9 12 18 53 47 20 16 20 60 43 54 33 Core Hits 602 | 7 33 5 . . 104 9 . 20 1 . . 5 4 . 21 6 10 . 13 7 3 37 6 1 4 17 17 24 15 23 27 75 38 46 24 Critical Kills 33 | . 1 . . . . . . 1 . . . . 1 . 3 . . . . . 1 4 . . . . 1 9 1 5 3 . 1 1 1 Critical Parts Destroyed 48 | . . . . . 1 3 . 2 . . . . 2 1 7 . . . . 9 1 6 1 . . . 3 5 . 4 2 1 . . . Critical Strikes 105 | . 3 . . . 2 3 . 3 . . . . 3 1 10 . . . . 9 14 10 1 . . . 4 17 3 9 5 1 1 3 3 Meltdown 8 | . . . . . . . . . . . . . 1 . . . . . . . . 3 . . . . . 1 1 . . . . 1 1 Destroy 54 | . 1 . . . 1 . . 2 . . . . . . . . . . . . 14 . . . . . 4 16 . 9 5 1 1 . . Corrupt 3 | . 2 . . . 1 . . . . . . . . . . . . . . . . . . . . . . . . . . . . . . Smash 34 | . . . . . . 3 . 1 . . . . 2 1 10 . . . . 9 . 7 1 . . . . . . . . . . . . Sever 2 | . . . . . . . . . . . . . . . . . . . . . . . . . . . . . 2 . . . . . . Sunder 4 | . . . . . . . . . . . . . . . . . . . . . . . . . . . . . . . . . . 2 2 Melee Attacks 339 | . . . . . 4 58 . 26 2 4 . 4 24 3 60 4 . 1 1 26 . 67 4 5 . 6 13 . . . . 1 2 17 7 Impact 310 | . . . . . 4 58 . 26 1 4 . 4 24 3 60 4 . 1 1 26 . 67 4 5 . 6 12 . . . . . . . . Slashing 1 | . . . . . . . . . 1 . . . . . . . . . . . . . . . . . . . . . . . . . . Piercing . | . . . . . . . . . . . . . . . . . . . . . . . . . . . . . . . . . . . . Entropic 27 | . . . . . . . . . . . . . . . . . . . . . . . . . . . . . . . . 1 2 17 7 Sneak Attacks 69 | . . . . . . 4 . 11 2 . . . 5 3 15 . . . 1 10 . 7 1 1 . 1 5 . . . . 1 . 2 . Combat Hostiles 8 | . . . . . . . . 3 . . . . 1 . 2 . . . . 1 . 1 . . . . . . . . . . . . . Follow-up Attacks . | . . . . . . . . . . . . . . . . . . . . . . . . . . . . . . . . . . . . Damage Inflicted 57010 | 288 1167 151 . . 3936 1765 . 2360 196 . . 285 1187 277 3660 782 466 . 1347 2280 456 4146 559 415 247 1790 2632 2165 1189 1113 2239 6990 4069 5713 3140 Guns 4932 | 265 1011 28 . . 2709 159 . 537 . . . 161 62 . . . . . . . . . . . . . . . . . . . . . . Cannons 10145 | . . . . . . 106 . 137 . . . 82 135 . 432 448 161 . 388 314 456 1012 159 266 . 490 1987 1249 433 280 125 56 23 431 975 Explosions 28764 | 23 156 123 . . 1227 . . 251 . . . . . . 590 51 305 . 875 364 . 1882 156 . . 1103 366 916 613 833 2114 6776 4046 4265 1729 Melee 12505 | . . . . . . 1500 . 1435 196 . . 42 990 277 2638 283 . . 84 1602 . 1252 77 149 . 197 279 . . . . 158 . 1009 337 Ramming 8 | . . . . . . . . . . . . . . . . . . . . . . . . . . . . . . . . . . 8 . Kinetic 5165 | 103 390 12 . . 2188 159 . 537 . . . 161 62 . . . . . . . 456 . . . . . 133 480 . 280 125 56 23 . . Thermal 29223 | 23 156 . . . 33 106 . 137 . . . 82 135 . 432 448 161 . 388 314 . 1012 326 266 247 490 1854 769 576 833 2114 6776 4046 4696 2803 Explosive 8434 | . . 123 . . 839 . . 251 . . . . . . 590 51 305 . 875 364 . 1882 156 . . 1103 366 916 613 . . . . . . Electromagnetic 1675 | 162 621 16 . . 876 . . . . . . . . . . . . . . . . . . . . . . . . . . . . . . Impact 10937 | . . . . . . 1500 . 1435 132 . . 42 990 277 2638 283 . . 84 1602 . 1252 77 149 . 197 279 . . . . . . . . Slashing 64 | . . . . . . . . . 64 . . . . . . . . . . . . . . . . . . . . . . . . . . Piercing . | . . . . . . . . . . . . . . . . . . . . . . . . . . . . . . . . . . . . Entropic 1504 | . . . . . . . . . . . . . . . . . . . . . . . . . . . . . . . . 158 . 1009 337 Highest Corruption 21 | . . . . . . 2 7 7 2 2 2 2 . . 1 1 . . . 1 15 21 16 . . 1 5 . . . 3 4 6 8 . Average Corruption 5 | . . . . . . 1 5 5 2 2 2 2 . . 1 1 . . . 1 7 17 8 . . 1 4 . . . 2 2 4 1 . Corruption Purged 45 | . . . . . . . . 5 . . . . . . . 1 . . . . . 10 16 . . . 7 . . . . . 6 . . Corruption Blocked . | . . . . . . . . . . . . . . . . . . . . . . . . . . . . . . . . . . . . Effects 204 | . . . . . . 8 1 28 3 5 . 5 . . 3 2 . . . 1 8 72 12 . . 1 11 . . . 20 4 11 9 . Message Errors 61 | . . . . . . 1 . 13 1 3 . 2 . . 1 . . . . . 2 13 2 . . 1 3 . . . 11 1 5 2 . Matter Fused 45 | . . . . . . 1 . 5 1 1 . 3 . . . 1 . . . . 2 18 4 . . . 4 . . . 2 . 2 1 . Heat Flow Errors 22 | . . . . . . 1 . 1 . . . . . . 2 . . . . . . 10 1 . . . . . . . 2 . 1 4 . Energy Discharges 16 | . . . . . . 2 . 3 . 1 . . . . . 1 . . . . 1 2 2 . . . . . . . 1 1 2 . . Parts Rejected 3 | . . . . . . . . . . . . . . . . . . . . . 2 1 . . . . . . . . . . . . . Parts Fused 3 | . . . . . . . . . . . . . . . . . . . . . . 1 . . . . 1 . . . . 1 . . . Data Loss (minor) 24 | . . . . . . 2 . 3 1 . . . . . . . . . . 1 . 12 . . . . 2 . . . 2 . . 1 . Data Loss (major) 6 | . . . . . . . 1 . . . . . . . . . . . . . . 4 . . . . . . . . 1 . . . . Misfires 9 | . . . . . . . . 3 . . . . . . . . . . . . . 3 2 . . . . . . . . . . 1 . Alerts 4 | . . . . . . 1 . . . . . . . . . . . . . . . 2 . . . . 1 . . . . . . . . Misdirections 6 | . . . . . . . . . . . . . . . . . . . . . 1 4 1 . . . . . . . . . . . . Weapon Failures 5 | . . . . . . . . . . . . . . . . . . . . . . 2 . . . . . . . . 1 1 1 . . Overload Shots 81 | . . . . . . 2 . 5 . . . 3 3 . 8 1 1 . . 2 . 14 3 4 . 3 20 4 2 . . . . 6 . Effects 7 | . . . . . . . . . . . . 1 . . 1 . 1 . . . . 1 1 . . . 1 . . . . . . 1 . Energy Bleed 4 | . . . . . . . . . . . . . . . . . 1 . . . . . 1 . . . 1 . . . . . . 1 . Heat Surge 2 | . . . . . . . . . . . . 1 . . . . . . . . . 1 . . . . . . . . . . . . . Short Circuit 1 | . . . . . . . . . . . . . . . 1 . . . . . . . . . . . . . . . . . . . . Overflow Damage 7664 | . . 16 . . 21 375 . 583 112 . . 16 631 189 1541 236 43 . 75 1036 . 680 124 96 31 126 375 141 198 . 120 292 151 334 122 Projectiles 926 | . . . . . . . . . . . . 16 45 . 3 72 43 . . 30 . 100 . 8 31 22 245 102 87 . . . . 54 68 Explosions 1262 | . . 16 . . 21 . . . . . . . . . 5 . . . 11 61 . 151 47 . . 62 3 39 111 . 120 292 151 142 30 Melee 5476 | . . . . . . 375 . 583 112 . . . 586 189 1533 164 . . 64 945 . 429 77 88 . 42 127 . . . . . . 138 24 Knockbacks 38 | . . . . . . 6 . 3 . . . . 2 2 9 . . . 1 4 . 4 . . . . 2 3 . . . 2 . . . Impact 32 | . . . . . . 6 . 3 . . . . 2 2 8 . . . 1 4 . 4 . . . . 2 . . . . . . . . Kinetic 5 | . . . . . . . . . . . . . . . . . . . . . . . . . . . . 3 . . . 2 . . . Secondary 1 | . . . . . . . . . . . . . . . 1 . . . . . . . . . . . . . . . . . . . . Self-Inflicted Damage 903 | 39 62 . . . 187 . . . . . . . . . . 70 . . 24 94 . . 74 . . 51 298 . . . . . . 4 . Shots 18 | 1 2 . . . 6 . . . . . . . . . . 1 . . 1 1 . . 1 . . 1 4 . . . . . . . . Rammed 2 | . . . . . . . . . . . . . . . . . . . . . . . . . . . . . . . . . . 2 . Targets Rammed 2 | . . . . . . . . . . . . . . . . . . . . . . . . . . . . . . . . . . 2 . Kicked . | . . . . . . . . . . . . . . . . . . . . . . . . . . . . . . . . . . . . Crushed . | . . . . . . . . . . . . . . . . . . . . . . . . . . . . . . . . . . . . Highest Temperature 563 | 60 132 13 . . 252 184 53 200 92 95 25 323 103 . 306 75 48 . 2 137 173 563 192 240 . 234 354 211 162 127 200 188 355 414 196 Average Temperature 58 | 27 38 7 . . 30 74 25 28 31 36 12 37 32 . 90 40 25 . 2 63 87 130 83 122 . 39 126 92 32 39 95 70 128 69 99 Received Heat Transfer 2879 | . 156 . . . 647 44 . . . . . . 36 . 123 . 36 . 9 12 . 252 9 27 . 39 24 232 18 36 73 142 367 495 102 Effects 7 | . . . . . . . . . . . . 2 . . . . . . . . . 2 . . . . 3 . . . . . . . . Interference 5 | . . . . . . . . . . . . 2 . . . . . . . . . 1 . . . . 2 . . . . . . . . Short Circuit 1 | . . . . . . . . . . . . . . . . . . . . . . . . . . . 1 . . . . . . . . Damage (major) 1 | . . . . . . . . . . . . . . . . . . . . . . 1 . . . . . . . . . . . . . Siege Activations . | . . . . . . . . . . . . . . . . . . . . . . . . . . . . . . . . . . . . Martial Activations . | . . . . . . . . . . . . . . . . . . . . . . . . . . . . . . . . . . . . Shielding Activations . | . . . . . . . . . . . . . . . . . . . . . . . . . . . . . . . . . . . . Robots Disrupted . | . . . . . . . . . . . . . . . . . . . . . . . . . . . . . . . . . . . . Combat Hostiles . | . . . . . . . . . . . . . . . . . . . . . . . . . . . . . . . . . . . . Robots Corrupted 58 | . . . . . 1 8 . 7 . . . . 6 2 12 . . . 1 9 . 7 . 2 . . 3 . . . . . . . . Combat Hostiles 17 | . . . . . 1 5 . 3 . . . . 2 . 2 . . . . . . 3 . 1 . . . . . . . . . . . Parts Fried 88 | . . . . . 6 4 . 12 3 . . . 9 4 22 . . . 2 10 . 8 . 1 . . 7 . . . . . . . . Impact Corruptions 169 | . . . . . . 15 . 15 2 . . . 17 3 46 9 . . 3 24 . 18 2 7 . 1 7 . . . . . . . . Robots Melted 26 | . . . . . . . . . . . . . 1 . . . 1 . . . . 4 . 1 . . . 1 2 . 1 3 3 5 4 Combat Hostiles 21 | . . . . . . . . . . . . . 1 . . . 1 . . . . 3 . 1 . . . . 2 . 1 3 3 2 4 Parts Melted 86 | . . . . . . 1 . . . . . . 1 . 4 . 4 . 1 4 . 12 . 13 . . 2 3 8 . 2 16 6 7 2 Heat Transferred 37192 | 50 200 . . . 50 100 . 185 . . . 111 100 . 510 700 250 . 600 360 . 1230 410 340 300 640 2310 1040 805 1120 2603 8880 5680 5917 2701 Parts Sabotaged 4 | . . . . . . . . . . . . . . . . . . . . . . . . . . . . . . . . . . 1 3 Parts Stolen 1 | . . . . . . . . . . . . . . . . . . . . . . . . 1 . . . . . . . . . . . Parts Stripped . | . . . . . . . . . . . . . . . . . . . . . . . . . . . . . . . . . . . . Power Chain Reactions 5 | 1 3 . . . 1 . . . . . . . . . . . . . . . . . . . . . . . . . . . . . . Alert | -11 -10 -10 -10 -9 -8 -7 -7 -7 -7 -7 -7 -6 -6 -6 -6 -6 -6 -6 -5 -5 -5 -5 -5 -5 -5 -4 -4 -4 -4 -4 -3 -3 -3 -2 -1 ------- Run | Yrd Mat Min Exi Min Mat Fac Was Fac Low Low Dat Pro Fac Was Fac Low Low Zio Pro Fac Was Fac Upp Upp Zhi Pro Fac Upp Upp War Pro Res Tes Res Acc Maximum Alert Level 5 | . 1 . . . 3 2 . 2 . . . . . . 3 . . . . 1 . 4 . . . . 3 . . . . 4 4 5 5 Low Security (%) 36 | 100 93 100 . 100 35 . 100 37 . . . . 100 100 6 . . . . 77 100 24 . . . . 17 . . . . 19 . . . Level 1 18 | . 6 . . . 25 79 . 22 . . . . . . 9 . . . . 22 . 14 . . . . 50 . . . . 11 . . . Level 2 13 | . . . . . 23 20 . 40 . . . . . . 32 . . . . . . 6 . . . . 25 . . . . 14 . . . Level 3 18 | . . . . . 15 . . . . . . . . . 51 . . . . . . 41 . . . . 6 . . . . 31 78 19 . Level 4 5 | . . . . . . . . . . . . . . . . . . . . . . 13 . . . . . . . . . 23 21 19 . Level 5 1 | . . . . . . . . . . . . . . . . . . . . . . . . . . . . . . . . . . 3 36 High Security 7 | . . . . . . . . . . . . . . . . . . . . . . . . . . . . . . . . . . 57 63 Max Security . | . . . . . . . . . . . . . . . . . . . . . . . . . . . . . . . . . . . . Peak Influence 3035 | 5 223 122 . . 963 474 96 516 . . . . 64 28 1012 . . . . 301 92 1164 . . . . 797 . . . . 1499 1409 3035 2294 Initial 1814 | . . 51 . . . 432 96 46 . . . . . 4 . . . . . 170 92 15 . . . . 300 . . . . . 837 787 1814 Average 570 | . 126 24 . . 387 325 84 283 . . . . 21 4 690 . . . . 170 57 637 . . . . 355 . . . . 733 967 1852 1942 Influence Increases 19744 | 15 594 150 . . 1512 393 . 859 235 . . 75 297 38 2195 15 125 . 669 643 . 1675 97 390 10 145 1413 617 285 384 358 2081 964 2760 750 Destroy 0b10 Robot/C 8320 | . 340 120 . . 860 200 . 240 . . . 60 100 . 700 . 100 . 380 220 . 740 80 40 . 100 300 420 220 280 260 1020 400 900 240 Destroy 0b10 Robot/NC 840 | 15 25 5 . . 85 35 . 70 10 . . 5 35 . 105 15 . . 15 70 . 60 . . 10 15 25 5 10 . 30 65 15 105 10 Destroy Leader 1604 | . 66 20 . . 220 62 . 76 . . . 10 40 . 150 . 10 . 30 52 . 148 . 20 . . 72 30 40 . 30 236 54 198 40 Allied During Kill 1368 | . . 4 . . . . . . . . . . . . 520 . . . 154 59 . 29 2 . . 15 36 42 . 14 38 240 5 200 10 Trap Triggered on 0b10 20 | . . . . . . . . . . . . . . . . . . . . . . 20 . . . . . . . . . . . . . Successful Hack 344 | . 11 . . . 14 22 . 57 . . . . 70 . 89 . . . . 20 . 51 . . . . 8 . . . . . 2 . . Select Force Hacks 210 | . 60 . . . 60 . . 90 . . . . . . . . . . . . . . . . . . . . . . . . . . . Disable Machine 795 | . . . . . 60 30 . 75 . . . . 15 . 90 . . . . 45 . 30 . . . . 165 . . . . 30 150 75 30 Anti-Garrison Action 550 | . . . . . . . . . . . . . . . 350 . . . . . . 200 . . . . . . . . . . . . . Destroy Structure 1868 | . 17 1 . . 93 14 . 26 . . . . 7 38 101 . . . . 72 . 322 . . . . 192 . . . . 400 158 367 60 Advance Influence 300 | . . . . . . . . . . . . . . . . . . . . . . . . . . . 300 . . . . . . . . Partial Spotted 480 | . . . . . . . . 150 . . . . 30 . 30 . . . . 15 . 45 . . . . 60 . . . . 60 30 60 . Lose Combat Pursuer 3045 | . 75 . . . 120 30 . 75 225 . . . . . 60 . 15 . 90 90 . 30 15 330 . 15 255 120 15 90 . 30 150 855 360 Influence Decreases 17450 | 15 463 281 . . 561 1067 211 474 308 270 108 75 283 52 1183 731 421 . 397 652 241 559 774 653 208 145 622 910 475 590 460 592 1052 1136 1481 Entered New Map 5855 | . . 80 . . . 519 181 20 168 72 108 . . 10 . 375 57 . . 102 171 7 422 89 198 . . 294 95 308 102 . 652 614 1211 Time Decay 9475 | 15 443 201 . . 541 518 30 434 140 198 . 75 276 42 588 356 354 . 377 380 70 442 342 534 10 85 452 526 380 234 318 372 350 262 130 Search Patrol Dispatched 100 | . . . . . . . . . . . . . . . . . . . . . . . . . . . 100 . . . . . . . . Lost Part 580 | . 20 . . . 20 30 . . . . . . . . . . 10 . . 10 . 60 10 10 . . 30 30 . 10 10 40 10 160 120 Lost Ally 1140 | . . . . . . . . 20 . . . . 7 . 295 . . . 20 160 . 50 . 20 . 60 40 60 . 38 30 180 40 100 20 Purge Threat 300 | . . . . . . . . . . . . . . . 300 . . . . . . . . . . . . . . . . . . . . Squads Dispatched 151 | . 2 . . . 13 6 . 8 . . . . 6 . 16 . . . 1 4 . 14 . . . . 12 . . . . 13 7 32 17 Investigation 38 | . 2 . . . 7 . . 6 . . . . 3 . 7 . . . . . . 4 . . . . 2 . . . . 3 2 1 1 Extermination 23 | . . . . . . 2 . 2 . . . . 2 . 3 . . . . 3 . 3 . . . . 3 . . . . 3 1 1 . Reinforcement 32 | . . . . . 3 4 . . . . . . 1 . 3 . . . . 1 . 5 . . . . 4 . . . . 6 1 4 . Assault 49 | . . . . . . . . . . . . . . . 3 . . . 1 . . 2 . . . . . . . . . 1 3 23 16 Garrison 9 | . . . . . 3 . . . . . . . . . . . . . . . . . . . . . 3 . . . . . . 3 . Intercept . | . . . . . . . . . . . . . . . . . . . . . . . . . . . . . . . . . . . . Searches Triggered 1 | . . . . . . . . . . . . . . . . . . . . . . . . . . . 1 . . . . . . . . Data Miner Redirects 1 | . . . . . . . . . . . . . . . . . . . . . . . . . . . . . . . . . 1 . . Construction Impeded 9 | . . . . . 2 . . . . . . . . . . . . . . . . 2 . . . . 1 . . . . 2 1 1 . Haulers Reinforced 4 | . . . . . . . . . . . . . . . 1 . . . . 1 . 1 . . . . . . . . . 1 . . . Active Scanning Responses . | . . . . . . . . . . . . . . . . . . . . . . . . . . . . . . . . . . . . Cargo Convoy Interrupts . | . . . . . . . . . . . . . . . . . . . . . . . . . . . . . . . . . . . . Stealth | -11 -10 -10 -10 -9 -8 -7 -7 -7 -7 -7 -7 -6 -6 -6 -6 -6 -6 -6 -5 -5 -5 -5 -5 -5 -5 -4 -4 -4 -4 -4 -3 -3 -3 -2 -1 --------- Run | Yrd Mat Min Exi Min Mat Fac Was Fac Low Low Dat Pro Fac Was Fac Low Low Zio Pro Fac Was Fac Upp Upp Zhi Pro Fac Upp Upp War Pro Res Tes Res Acc Distress Signals 32 | . 3 . . . 7 . . 1 . . . . . . 3 . . . . 1 . 2 . . . 1 . . . 2 1 3 2 5 1 Communications Jammed . | . . . . . . . . . . . . . . . . . . . . . . . . . . . . . . . . . . . . Distress Signals . | . . . . . . . . . . . . . . . . . . . . . . . . . . . . . . . . . . . . Times Spotted 880 | . 26 3 . . 56 15 6 17 12 4 . 3 12 6 49 5 11 . 25 22 6 49 11 27 . 8 33 25 9 131 23 64 34 139 49 Peak Tracking Total 49 | . 4 3 . . 6 5 6 4 7 4 . 3 2 6 6 3 5 . 7 3 5 9 3 6 . 5 4 6 2 19 7 7 16 49 15 Tactical Retreats 79 | . 4 . . . 4 2 . 2 6 . . . . . 3 . 1 . 3 5 1 1 1 8 . 1 7 5 1 2 . 2 3 10 7 Traps | -11 -10 -10 -10 -9 -8 -7 -7 -7 -7 -7 -7 -6 -6 -6 -6 -6 -6 -6 -5 -5 -5 -5 -5 -5 -5 -4 -4 -4 -4 -4 -3 -3 -3 -2 -1 ------- Run | Yrd Mat Min Exi Min Mat Fac Was Fac Low Low Dat Pro Fac Was Fac Low Low Zio Pro Fac Was Fac Upp Upp Zhi Pro Fac Upp Upp War Pro Res Tes Res Acc Traps Triggered 14 | . . . . . 1 3 . . . . . . 1 . 3 . . . . 1 . 1 . . . . . . . . . 1 2 1 . Indirectly . | . . . . . . . . . . . . . . . . . . . . . . . . . . . . . . . . . . . . Trap Hack Attempts 41 | . . . . . . 3 . . . . . . . . . . . . . . . . . . . . 38 . . . . . . . . Triggered 1 | . . . . . . . . . . . . . . . . . . . . . . . . . . . 1 . . . . . . . . Disarmed . | . . . . . . . . . . . . . . . . . . . . . . . . . . . . . . . . . . . . Reprogrammed 10 | . 4 . . . . 1 . . . . . . . . . . . . . . . . . . . . 5 . . . . . . . . Reused 26 | . . . . . . . . . . . . . . . . 3 3 . 1 . . 2 2 7 . . . 1 5 . 2 . . . . Traps Extracted 39 | . . . . . . 1 . . . . . . . . . 1 . . . . . . 2 5 . . 5 8 12 4 1 . . . . Installed 86 | . . . . . . . . . . . . . . . . 19 3 . 1 . . 2 6 13 . 1 . 18 20 . 3 . . . . Triggered 23 | . . . . . . . . . . . . . . . . 3 3 . 1 . . 2 2 4 . . . 1 5 . 2 . . . . Most Traps Carried 15 | . . . . . . 1 1 . . . . 4 4 4 4 13 13 10 14 13 13 15 13 9 1 1 5 8 12 15 15 13 13 13 13 Machines | -11 -10 -10 -10 -9 -8 -7 -7 -7 -7 -7 -7 -6 -6 -6 -6 -6 -6 -6 -5 -5 -5 -5 -5 -5 -5 -4 -4 -4 -4 -4 -3 -3 -3 -2 -1 ---------- Run | Yrd Mat Min Exi Min Mat Fac Was Fac Low Low Dat Pro Fac Was Fac Low Low Zio Pro Fac Was Fac Upp Upp Zhi Pro Fac Upp Upp War Pro Res Tes Res Acc Machines Disabled 63 | . . . . . 4 2 . 5 . . . . 1 . 7 . . . 1 3 . 2 2 1 . . 11 1 . 1 1 2 12 5 2 Max in Single Turn 2 | . . . . . 1 1 . 2 . . . . 1 . 2 . . . 1 1 . 1 1 1 . . 2 1 . . 1 1 1 1 1 Garrison Access 5 | . . . . . . . . 1 . . . . . . 2 . . . . . . 2 . . . . . . . . . . . . . Machines Repaired . | . . . . . . . . . . . . . . . . . . . . . . . . . . . . . . . . . . . . Machines Dismantled . | . . . . . . . . . . . . . . . . . . . . . . . . . . . . . . . . . . . . Machines Sabotaged . | . . . . . . . . . . . . . . . . . . . . . . . . . . . . . . . . . . . . Overloaded Fab Kills . | . . . . . . . . . . . . . . . . . . . . . . . . . . . . . . . . . . . . Hacking | -11 -10 -10 -10 -9 -8 -7 -7 -7 -7 -7 -7 -6 -6 -6 -6 -6 -6 -6 -5 -5 -5 -5 -5 -5 -5 -4 -4 -4 -4 -4 -3 -3 -3 -2 -1 --------- Run | Yrd Mat Min Exi Min Mat Fac Was Fac Low Low Dat Pro Fac Was Fac Low Low Zio Pro Fac Was Fac Upp Upp Zhi Pro Fac Upp Upp War Pro Res Tes Res Acc Machines Accessed 130 | . 8 . 2 . 12 4 . 20 . 3 3 1 12 . 22 . . 1 . 5 . 7 1 . 4 . 9 3 1 1 . 4 2 4 1 Terminals 48 | . 6 . . . 8 2 . 10 . . . 1 6 . 12 . . . . . . . 1 . . . . 1 1 . . . . . . Fabricators 18 | . . . . . . . . 2 . . . . 3 . 2 . . . . 3 . 2 . . . . 4 . . . . . . 1 1 Repair Stations 12 | . . . . . . 1 . 1 . . . . . . 4 . . . . 1 . . . . . . 2 . . . . 1 1 1 . Recycling Units 14 | . 2 . . . 2 . . 4 . . . . 1 . . . . . . 1 . 1 . . . . 1 . . . . 1 . 1 . Scanalyzers 14 | . . . . . 2 1 . 1 . . . . 2 . 2 . . . . . . 2 . . . . 1 . . . . 1 1 1 . Garrison Access 8 | . . . . . . . . 2 . . . . . . 2 . . . . . . 2 . . . . 1 . . . . 1 . . . Total Hacks 320 | . 18 . 2 . 28 10 . 47 . 5 21 1 26 . 56 . . 5 . 11 . 19 4 . 15 . 21 8 1 1 . 7 4 7 3 Successful 181 | . 9 . 2 . 8 2 . 19 . 5 21 1 15 . 27 . . 5 . 5 . 14 4 . 15 . 11 8 1 1 . 1 2 5 . Failed 137 | . 9 . . . 20 8 . 27 . . . . 10 . 29 . . . . 6 . 5 . . . . 10 . . . . 6 2 2 3 Catastrophic 26 | . 3 . . . 7 1 . 5 . . . . 2 . 4 . . . . . . . . . . . 1 . . . . 2 . . 1 Database Lockouts 2 | . . . . . . . . 1 . . . . 1 . . . . . . . . . . . . . . . . . . . . . . Manual 261 | . 17 . 1 . 23 1 . 28 . . . . 9 . 20 . . . . 32 . 39 . . . . 26 . . 1 . 24 24 13 3 Terminals 121 | . 15 . . . 21 4 . 29 . . . 1 12 . 31 . . . . . . . 4 . . . . 3 1 . . . . . . Fabricators 47 | . . . . . . . . 3 . . . . 8 . 5 . . . . 7 . 10 . . . . 9 . . . . . . 2 3 Repair Stations 22 | . . . . . . 2 . 2 . . . . . . 9 . . . . 1 . . . . . . 4 . . . . 1 2 1 . Recycling Units 22 | . 3 . . . 2 . . 6 . . . . 1 . . . . . . 3 . 2 . . . . 2 . . . . 1 . 2 . Scanalyzers 37 | . . . . . 5 4 . 3 . . . . 5 . 7 . . . . . . 4 . . . . 3 . . . . 2 2 2 . Garrison Access 17 | . . . . . . . . 4 . . . . . . 4 . . . . . . 3 . . . . 3 . . . . 3 . . . Terminal Hacks 82 | . 4 . 2 . 1 . . 5 . 5 21 1 3 . 6 . . 5 . . . . 4 . 15 . . 8 1 1 . . . . . Record 25 | . . . 1 . . . . . . 3 4 1 . . . . . . . . . . 4 . 4 . . 7 1 . . . . . . Part Schematic 20 | . . . . . . . . 1 . . 10 . . . 1 . . 5 . . . . . . 3 . . . . . . . . . . Robot Schematic 5 | . 1 . . . . . . . . . 4 . . . . . . . . . . . . . . . . . . . . . . . . Robot Analysis 4 | . . . . . . . . . . . . . . . . . . . . . . . . . 4 . . . . . . . . . . Prototype ID Bank 7 | . . . . . . . . . . . 3 . . . . . . . . . . . . . 4 . . . . . . . . . . Open Door 4 | . . . . . . . . . . 2 . . . . . . . . . . . . . . . . . 1 . 1 . . . . . Branch Access Points 2 | . . . . . . . . 1 . . . . . . 1 . . . . . . . . . . . . . . . . . . . . Terminal Index 1 | . . . . . 1 . . . . . . . . . . . . . . . . . . . . . . . . . . . . . . Alert Level 2 | . . . . . . . . 1 . . . . . . 1 . . . . . . . . . . . . . . . . . . . . Unreport Threat 2 | . . . . . . . . . . . . . . . 2 . . . . . . . . . . . . . . . . . . . . Locate Traps 3 | . 1 . . . . . . . . . . . 2 . . . . . . . . . . . . . . . . . . . . . . Reprogram Traps 2 | . 2 . . . . . . . . . . . . . . . . . . . . . . . . . . . . . . . . . . Recall Extermination 2 | . . . . . . . . 2 . . . . . . . . . . . . . . . . . . . . . . . . . . . Registered Components 2 | . . . . . . . . . . . . . 1 . 1 . . . . . . . . . . . . . . . . . . . . Proto ID Catalog 1 | . . . 1 . . . . . . . . . . . . . . . . . . . . . . . . . . . . . . . . Fabricator Hacks 17 | . . . . . . . . 1 . . . . 4 . 2 . . . . 1 . 5 . . . . 3 . . . . . . 1 . Network Status 7 | . . . . . . . . 1 . . . . 1 . 1 . . . . 1 . 1 . . . . 1 . . . . . . 1 . Load Schematic 6 | . . . . . . . . . . . . . 2 . 1 . . . . . . 2 . . . . 1 . . . . . . . . Build 4 | . . . . . . . . . . . . . 1 . . . . . . . . 2 . . . . 1 . . . . . . . . Repair Station Hacks 14 | . . . . . . 1 . 2 . . . . . . 7 . . . . . . . . . . . 4 . . . . . . . . Scan Component 8 | . . . . . . 1 . 1 . . . . . . 4 . . . . . . . . . . . 2 . . . . . . . . Repair 6 | . . . . . . . . 1 . . . . . . 3 . . . . . . . . . . . 2 . . . . . . . . Recycling Unit Hacks 5 | . . . . . . . . 1 . . . . 1 . . . . . . . . 2 . . . . . . . . . . . 1 . Process 1 | . . . . . . . . . . . . . . . . . . . . . . 1 . . . . . . . . . . . . . Report Inventory 1 | . . . . . . . . . . . . . . . . . . . . . . . . . . . . . . . . . . 1 . Retrieve Matter 1 | . . . . . . . . . . . . . . . . . . . . . . 1 . . . . . . . . . . . . . Retrieve Components 2 | . . . . . . . . 1 . . . . 1 . . . . . . . . . . . . . . . . . . . . . . Scanalyzer 23 | . . . . . 4 1 . 1 . . . . 3 . 5 . . . . . . 3 . . . . 3 . . . . . 2 1 . Insert Component 6 | . . . . . 1 . . . . . . . 1 . 2 . . . . . . 1 . . . . 1 . . . . . . . . Analyze 3 | . . . . . . . . . . . . . 1 . 1 . . . . . . 1 . . . . . . . . . . . . . Retrieve Study 14 | . . . . . 3 1 . 1 . . . . 1 . 2 . . . . . . 1 . . . . 2 . . . . . 2 1 . Garrison Access Hacks 2 | . . . . . . . . 1 . . . . . . . . . . . . . 1 . . . . . . . . . . . . . Seal Access 2 | . . . . . . . . 1 . . . . . . . . . . . . . 1 . . . . . . . . . . . . . Unauthorized Hacks 38 | . 5 . . . 3 . . 8 . . . . 4 . 7 . . . . 4 . 3 . . . . 1 . . . . 1 . 2 . Terminals 15 | . 3 . . . 1 . . 4 . . . . 2 . 5 . . . . . . . . . . . . . . . . . . . . Assimilate 5 | . . . . . . . . 3 . . . . 1 . 1 . . . . . . . . . . . . . . . . . . . . Botnet 9 | . 2 . . . 1 . . 1 . . . . 1 . 4 . . . . . . . . . . . . . . . . . . . . Operators 1 | . 1 . . . . . . . . . . . . . . . . . . . . . . . . . . . . . . . . . . Fabricators 10 | . . . . . . . . 1 . . . . 2 . 1 . . . . 3 . 2 . . . . 1 . . . . . . . . Report 2 | . . . . . . . . . . . . . . . . . . . . 1 . 1 . . . . . . . . . . . . . Prioritize 1 | . . . . . . . . . . . . . . . . . . . . . . 1 . . . . . . . . . . . . . Liberate 2 | . . . . . . . . . . . . . . . . . . . . 1 . . . . . . 1 . . . . . . . . Haulers 3 | . . . . . . . . 1 . . . . 1 . . . . . . 1 . . . . . . . . . . . . . . . Recompile 2 | . . . . . . . . . . . . . 1 . 1 . . . . . . . . . . . . . . . . . . . . Repair Stations 2 | . . . . . . . . . . . . . . . . . . . . . . . . . . . . . . . . 1 . 1 . Patch 2 | . . . . . . . . . . . . . . . . . . . . . . . . . . . . . . . . 1 . 1 . Recycling Units 9 | . 2 . . . 2 . . 3 . . . . . . . . . . . 1 . . . . . . . . . . . . . 1 . Recyclers 2 | . . . . . . . . . . . . . . . . . . . . 1 . . . . . . . . . . . . . 1 . Tunnel 7 | . 2 . . . 2 . . 3 . . . . . . . . . . . . . . . . . . . . . . . . . . . Scanalyzers . | . . . . . . . . . . . . . . . . . . . . . . . . . . . . . . . . . . . . Garrison Access 2 | . . . . . . . . . . . . . . . 1 . . . . . . 1 . . . . . . . . . . . . . Jam 2 | . . . . . . . . . . . . . . . 1 . . . . . . 1 . . . . . . . . . . . . . Data Cores Recovered 3 | . . . . . . . . 1 . . . . . . 1 . . . . . . . . . . . . . . . . . . 1 . Used . | . . . . . . . . . . . . . . . . . . . . . . . . . . . . . . . . . . . . Hacking Detections 89 | . 5 . . . 10 4 . 17 . . . . 9 . 19 . . . . 4 . 5 . . . . 7 1 . . . 3 2 2 1 Full Trace Events 21 | . . . . . 4 . . 3 . . . . 2 . 5 . . . . . . 2 . . . . 2 1 . . . 1 . . 1 Feedback Events . | . . . . . . . . . . . . . . . . . . . . . . . . . . . . . . . . . . . . Feedback Blocked . | . . . . . . . . . . . . . . . . . . . . . . . . . . . . . . . . . . . . Robot Schematics Acquired 17 | . 1 . . . . . . . . . 4 . . . . . . 4 . . . . . . . . . . . . . . 8 . . Robots Built 2 | . . . . . . . . . . . . . . . . . . . . . . . . . . . 2 . . . . . . . . Authchips . | . . . . . . . . . . . . . . . . . . . . . . . . . . . . . . . . . . . . Time 204 | . . . . . . . . . . . . . . . . . . . . . . . . . . . 204 . . . . . . . . Total Robot Build Rating 16 | . . . . . . . . . . . . . . . . . . . . . . . . . . . 16 . . . . . . . . Part Schematics Acquired 89 | . . . . . . . . 1 . . 10 . 1 . 2 . . 18 . 37 . 13 . . 3 . . . . . . . 4 . . Parts Built 5 | . . . . . . . . . . . . . 2 . . . . . . . . 3 . . . . . . . . . . . . . Authchips 2 | . . . . . . . . . . . . . . . . . . . . . . 2 . . . . . . . . . . . . . Time 148 | . . . . . . . . . . . . . 53 . . . . . . . . 95 . . . . . . . . . . . . . Total Part Build Rating 30 | . . . . . . . . . . . . . 12 . . . . . . . . 18 . . . . . . . . . . . . . Part Studies Acquired 14 | . . . . . 3 1 . 1 . . . . 1 . 2 . . . . . . 1 . . . . 2 . . . . . 2 1 . Parts Repaired 6 | . . . . . . . . 1 . . . . . . 3 . . . . . . . . . . . 2 . . . . . . . . Time 329 | . . . . . . . . 86 . . . . . . 125 . . . . . . . . . . . 118 . . . . . . . . Parts Recycled . | . . . . . . . . . . . . . . . . . . . . . . . . . . . . . . . . . . . . Recycled Matter 46 | . . . . . . . . . . . . . . . . . . . . . . 46 . . . . . . . . . . . . . Retrieved Matter 46 | . . . . . . . . . . . . . . . . . . . . . . 46 . . . . . . . . . . . . . Retrieved Components 12 | . . . . . . . . 10 . . . . 2 . . . . . . . . . . . . . . . . . . . . . . Parts Scanalyzed 4 | . . . . . . . . . . . . . 1 . 2 . . . . . . 1 . . . . . . . . . . . . . Part Schematics Acquired 3 | . . . . . . . . . . . . . 1 . 1 . . . . . . 1 . . . . . . . . . . . . . Parts Damaged . | . . . . . . . . . . . . . . . . . . . . . . . . . . . . . . . . . . . . Bothacking | -11 -10 -10 -10 -9 -8 -7 -7 -7 -7 -7 -7 -6 -6 -6 -6 -6 -6 -6 -5 -5 -5 -5 -5 -5 -5 -4 -4 -4 -4 -4 -3 -3 -3 -2 -1 ------------ Run | Yrd Mat Min Exi Min Mat Fac Was Fac Low Low Dat Pro Fac Was Fac Low Low Zio Pro Fac Was Fac Upp Upp Zhi Pro Fac Upp Upp War Pro Res Tes Res Acc Used RIF Installer . | . . . . . . . . . . . . . . . . . . . . . . . . . . . . . . . . . . . . Robots Hacked 2 | . . . . . . . . . . . . . . . . . . . . 1 . . . . . . 1 . . . . . . . . Non-combat 1 | . . . . . . . . . . . . . . . . . . . . . . . . . . . 1 . . . . . . . . Combat 1 | . . . . . . . . . . . . . . . . . . . . 1 . . . . . . . . . . . . . . . Robot Hacks Applied 2 | . . . . . . . . . . . . . . . . . . . . 1 . . . . . . 1 . . . . . . . . parse_system 1 | . . . . . . . . . . . . . . . . . . . . 1 . . . . . . . . . . . . . . . find_chute 1 | . . . . . . . . . . . . . . . . . . . . . . . . . . . 1 . . . . . . . . Relay Couplers Released 6 | . . . . . . . . . . . . . . . 2 . . . . . . . . . . . . . . . . 4 . . . Machine Destruction 2 | . . . . . . . . . . . . . . . 2 . . . . . . . . . . . . . . . . . . . . Programmers 4 | . . . . . . . . . . . . . . . . . . . . . . . . . . . . . . . . 4 . . . Fabnet Peak Effective % . | . . . . . . . . . . . . . . . . . . . . . . . . . . . . . . . . . . . . Robots Rewired 15 | . . . . . . . . . . . . . . . . . . . 2 . . . 1 4 . . . . . 6 2 . . . . Allies Hacked 3 | . . . . . . . . . . . . . . . . . . . . 1 . 1 . . . . . . . . 1 . . . . Hacks Repelled . | . . . . . . . . . . . . . . . . . . . . . . . . . . . . . . . . . . . . Allies | -11 -10 -10 -10 -9 -8 -7 -7 -7 -7 -7 -7 -6 -6 -6 -6 -6 -6 -6 -5 -5 -5 -5 -5 -5 -5 -4 -4 -4 -4 -4 -3 -3 -3 -2 -1 -------- Run | Yrd Mat Min Exi Min Mat Fac Was Fac Low Low Dat Pro Fac Was Fac Low Low Zio Pro Fac Was Fac Upp Upp Zhi Pro Fac Upp Upp War Pro Res Tes Res Acc Total Allies 82 | . . 1 . . . . . 3 . . . . 1 19 1 . . 4 2 8 . 4 1 4 . . 5 2 . 6 3 8 3 5 2 Largest Group 19 | . . 1 . . . . . 3 . . . . 1 19 17 . . 4 4 5 . 3 1 4 4 4 3 3 . 6 4 6 1 3 1 Highest-Rated Group 702 | . . 31 . . . . . 62 . . . . 26 702 602 . . 158 171 255 . 197 64 119 119 119 243 139 . 329 291 513 96 485 219 Highest-Rated Ally 269 | . . 31 . . . . . 26 . . . . 26 50 47 . . 41 49 85 . 85 64 64 30 30 81 64 . 64 116 103 96 269 219 Zionite Dispatches 13 | . . . . . . . . . . . . . . . . . . . . 3 . 3 . . . . 1 . . . . 3 . 2 1 Heavy 5 | . . . . . . . . . . . . . . . . . . . . 2 . 1 . . . . . . . . . 2 . . . Light 1 | . . . . . . . . . . . . . . . . . . . . . . . . . . . . . . . . . . 1 . Hacker 2 | . . . . . . . . . . . . . . . . . . . . . . . . . . . 1 . . . . 1 . . . Experimental 1 | . . . . . . . . . . . . . . . . . . . . . . . . . . . . . . . . . . 1 . Hero 1 | . . . . . . . . . . . . . . . . . . . . . . . . . . . . . . . . . . . 1 Trap Resupply 1 | . . . . . . . . . . . . . . . . . . . . . . 1 . . . . . . . . . . . . . Offense Resupply 1 | . . . . . . . . . . . . . . . . . . . . . . 1 . . . . . . . . . . . . . Hacking Resupply 1 | . . . . . . . . . . . . . . . . . . . . 1 . . . . . . . . . . . . . . . Total Orders 30 | . . . . . . . . 1 . . . . 4 . . . . . . 1 . 4 . 2 2 . . 4 . 7 4 . . . 1 STAY 16 | . . . . . . . . 1 . . . . 2 . . . . . . . . 2 . 1 1 . . 2 . 4 2 . . . 1 FOLLOW 11 | . . . . . . . . . . . . . 2 . . . . . . . . . . 1 1 . . 2 . 3 2 . . . . DROP 3 | . . . . . . . . . . . . . . . . . . . . 1 . 2 . . . . . . . . . . . . . Ally Attacks 659 | . . 7 . . . . . . . . . . . 109 163 . . . 39 51 . 22 1 2 . 12 24 20 . 26 24 65 6 71 17 Total Damage 27098 | . . 145 . . . . . . . . . . . 3797 3843 . . . 1001 1726 . 992 54 99 . 157 1046 485 . 738 894 2961 187 7158 1815 Kills 131 | . . 3 . . . . . . . . . . . 6 25 . . . 11 8 . 9 1 . . 2 5 5 . 2 4 17 1 32 . Allies Corrupted 7 | . . . . . . . . . . . . . . 2 . . . . . 1 . . . . . . . . . 2 . 1 . 1 . Allies Melted 5 | . . . . . . . . . . . . . . . 1 . . . . . . . . . . 1 . . . 2 . . 1 . . Field Lobotomies 4 | . . . . . . . . . . . . . . . . . . . . . . . . . . . . . . . 1 . 1 1 1 Intel | -11 -10 -10 -10 -9 -8 -7 -7 -7 -7 -7 -7 -6 -6 -6 -6 -6 -6 -6 -5 -5 -5 -5 -5 -5 -5 -4 -4 -4 -4 -4 -3 -3 -3 -2 -1 ------- Run | Yrd Mat Min Exi Min Mat Fac Was Fac Low Low Dat Pro Fac Was Fac Low Low Zio Pro Fac Was Fac Upp Upp Zhi Pro Fac Upp Upp War Pro Res Tes Res Acc Active Infowar (turns) 27447 | 7 1027 937 436 380 656 1226 62 1050 285 413 21 343 603 250 1910 818 1049 613 1059 889 155 1436 778 1512 185 545 1123 1478 892 880 1199 1026 734 1138 332 Optics 16687 | . . . . . . . . . . . . . . . 1196 818 1049 613 1059 889 155 1436 778 1512 185 545 1123 1478 892 712 1199 1026 22 . . Sensors 20148 | . . . . . . 1078 62 1050 285 413 21 343 603 250 1810 818 1049 613 1059 849 155 1366 770 1512 185 545 999 753 . . 605 767 734 1122 332 IFF 397 | . . . . . . . . . . . . . . . . . . . . . . . . . 47 350 . . . . . . . . . Seismic 6893 | 7 1027 937 436 380 656 148 . . . . . . . . . . . . . . . . . . . . 19 1478 892 753 160 . . . . Cloaking 754 | . . . . . . . . . . . . . . . . . . . . 115 . . . . . . 89 250 . . . . . 300 . Jamming 3 | . . . . . . . . . . . . . . . . . . . . . . 1 . . . . . 2 . . . . . . . ECM 115 | . . . . . . . 1 112 . . . . . . . . . . . . . . . . . . . . . . . . . 2 . Robot Analysis Total 4 | . . . . . . . . . . . . . . . . . . . . . . . . . 4 . . . . . . . . . . Derelict Logs Recovered 22 | . . 3 . 1 . . . . 1 1 . 1 . . . 3 1 1 2 . . . 1 2 . 1 . 2 2 . . . . . . Drone Launches . | . . . . . . . . . . . . . . . . . . . . . . . . . . . . . . . . . . . . Drone Recoveries . | . . . . . . . . . . . . . . . . . . . . . . . . . . . . . . . . . . . . Zionite Intel Received 26 | . . . . . . . . . . . . . . . . . . . . 5 . 6 . . . . 4 . . . . 3 7 1 . Branch Access 2 | . . . . . . . . . . . . . . . . . . . . . . . . . . . 1 . . . . . 1 . . Emergency Access 2 | . . . . . . . . . . . . . . . . . . . . 1 . . . . . . . . . . . . 1 . . Guard Positions 1 | . . . . . . . . . . . . . . . . . . . . . . . . . . . . . . . . . 1 . . Component Stockpiles 2 | . . . . . . . . . . . . . . . . . . . . . . 1 . . . . . . . . . 1 . . . Prototype Stockpiles 4 | . . . . . . . . . . . . . . . . . . . . . . 1 . . . . 1 . . . . . 1 1 . Component Schematics 2 | . . . . . . . . . . . . . . . . . . . . 2 . . . . . . . . . . . . . . . Prototype Schematics 2 | . . . . . . . . . . . . . . . . . . . . 1 . 1 . . . . . . . . . . . . . Unaware Schematics 2 | . . . . . . . . . . . . . . . . . . . . . . . . . . . . . . . . . 2 . . Unaware Analyses 4 | . . . . . . . . . . . . . . . . . . . . . . 2 . . . . 1 . . . . 1 . . . Trap Installations 1 | . . . . . . . . . . . . . . . . . . . . 1 . . . . . . . . . . . . . . . Active Terminals 1 | . . . . . . . . . . . . . . . . . . . . . . . . . . . . . . . . 1 . . . Active Garrisons 3 | . . . . . . . . . . . . . . . . . . . . . . 1 . . . . 1 . . . . . 1 . . Exploration | -11 -10 -10 -10 -9 -8 -7 -7 -7 -7 -7 -7 -6 -6 -6 -6 -6 -6 -6 -5 -5 -5 -5 -5 -5 -5 -4 -4 -4 -4 -4 -3 -3 -3 -2 -1 ------------- Run | Yrd Mat Min Exi Min Mat Fac Was Fac Low Low Dat Pro Fac Was Fac Low Low Zio Pro Fac Was Fac Upp Upp Zhi Pro Fac Upp Upp War Pro Res Tes Res Acc Turns Passed 30339 | 113 1273 946 436 380 1735 1432 62 1062 285 413 21 361 641 250 1918 818 1049 613 1059 889 155 1436 778 1512 185 545 1123 1478 892 1383 1199 1026 787 1346 738 Spaces Moved 41223 | 58 722 576 275 245 669 924 171 1867 731 1259 78 1058 1117 348 2702 1521 2740 1033 1264 1580 214 2018 1272 1863 169 683 1350 2254 1319 1999 2036 1646 776 1923 763 Core 116 | 2 . . . . . . . . . . . . . . . . . . . . . . . . . . . . . . . . . . 114 Treads 1 | . 1 . . . . . . . . . . . . . . . . . . . . . . . . . . . . . . . . . . Legs . | . . . . . . . . . . . . . . . . . . . . . . . . . . . . . . . . . . . . Wheels 3647 | 56 721 576 275 245 669 924 . . . . . . . . . . . . . . . . . . . . . . . . . . . . 181 Hover 31652 | . . . . . . . . . . . . . 942 348 2702 1521 2740 1033 1264 1580 214 2018 1272 1863 169 683 1350 2254 1319 1999 2036 1646 776 1923 . Flight 5807 | . . . . . . . 171 1867 731 1259 78 1058 175 . . . . . . . . . . . . . . . . . . . . . 468 Fastest Speed 16 | 50 80 155 155 155 150 90 24 24 24 24 24 24 24 43 33 36 16 43 43 36 36 16 16 27 43 43 38 38 40 38 38 22 35 36 24 Average Speed 45 | 78 128 155 155 155 156 94 24 24 24 24 24 24 40 43 46 40 34 43 43 37 36 35 35 40 43 43 38 39 40 40 38 36 40 41 49 Slowest Speed 240 | 80 240 155 155 155 165 110 24 25 24 24 24 24 131 43 106 43 90 43 43 90 36 90 40 43 98 43 38 40 40 92 38 41 124 160 110 Overloaded Moves 1614 | . . . . . . . . . . . . . . . 1 . 1242 . . . . 109 51 152 . . . . . . . 30 26 3 . Propulsion Burnouts 1 | . . . . . . . . . . . . . . . . . 1 . . . . . . . . . . . . . . . . . . Robots Hopped 15 | . . . . . . . 5 7 . . . . . . . . . . . . . . . . . . . . . . . . . . 3 Potential Cave-ins 15 | . . . . . 6 . . . . . . . . . . . . . . . . . . . . 4 . . . . . 2 2 1 . Cave-ins Triggered . | . . . . . . . . . . . . . . . . . . . . . . . . . . . . . . . . . . . . Teleports 1 | . . . . . . . . . . . . . . . . . . . . . . . . . . . . . . . . . . 1 . Exploration Rate (%) 72 | 3 98 99 61 69 72 22 99 47 80 97 68 96 26 93 76 98 93 91 96 37 97 46 98 93 61 83 31 98 92 93 99 46 73 61 26 Regions Visited 35 Branch Regions 20 Pre-discovered Areas 18 | . 2 . 1 1 2 . . 3 . . 1 . . . . . . . 1 . . . . . 3 . . 3 1 . . . . . . Known Exits Taken 20 | . . . . 1 1 . . 1 1 1 1 1 . . 1 1 1 1 1 . . 1 1 1 1 1 1 . 1 . . . . 1 . Unknown Exits Taken 9 | 1 1 1 1 . . . . . . . . . . . . . . . . . . . . . . . . 1 . 1 1 1 1 . . Scrap Searched 42 | . . 1 . 2 . . . . 2 7 . 1 . . . 1 5 3 1 . . . 4 3 . 3 . 2 4 . 3 . . . . Spaces Dug 170 | . . . . . 4 14 . 11 . 4 . 5 6 . 19 1 1 . 2 7 . 24 5 14 . 11 22 . . . . . 1 16 3 Terrain Destroyed 1700 | . 16 1 . . 152 14 . 27 . 4 . 7 7 . 105 19 60 . 84 20 . 173 37 20 . 128 122 54 77 9 40 264 119 111 30 Melee 94 | . . . . . 4 14 . 7 . 4 . 3 6 . 11 1 . . . 6 . 24 2 . . . 4 . . . . . 1 5 2 Projectile 214 | . . . . . . . . 12 . . . 4 1 . 15 9 4 . 6 9 . 19 6 20 . 41 41 4 5 . . . 1 15 2 AOE 1392 | . 16 1 . . 148 . . 8 . . . . . . 79 9 56 . 78 5 . 130 29 . . 87 77 50 72 9 40 264 117 91 26 Terrain Rammed . | . . . . . . . . . . . . . . . . . . . . . . . . . . . . . . . . . . . . Walls Destroyed . | . . . . . . . . . . . . . . . . . . . . . . . . . . . . . . . . . . . . Machines Disabled . | . . . . . . . . . . . . . . . . . . . . . . . . . . . . . . . . . . . . Actions | -11 -10 -10 -10 -9 -8 -7 -7 -7 -7 -7 -7 -6 -6 -6 -6 -6 -6 -6 -5 -5 -5 -5 -5 -5 -5 -4 -4 -4 -4 -4 -3 -3 -3 -2 -1 --------- Run | Yrd Mat Min Exi Min Mat Fac Was Fac Low Low Dat Pro Fac Was Fac Low Low Zio Pro Fac Was Fac Upp Upp Zhi Pro Fac Upp Upp War Pro Res Tes Res Acc Total 50790 | 90 943 623 287 246 1132 1376 191 2426 837 1362 79 1151 1262 442 3232 1692 2830 1199 1746 1823 260 2552 1564 2592 263 860 1833 2767 1634 2555 2401 1939 1176 2359 1066 Wait 6469 | 6 101 39 . . 231 297 2 457 98 94 . 67 65 86 358 92 56 166 435 142 4 329 227 625 50 88 289 400 217 432 270 101 242 240 163 Move 41164 | 57 721 575 274 244 668 924 163 1852 730 1258 77 1057 1117 347 2701 1520 2739 1032 1263 1580 213 2017 1271 1862 168 682 1349 2253 1318 1998 2035 1645 775 1923 756 Hop 12 | . . . . . . . 2 7 . . . . . . . . . . . . . . . . . . . . . . . . . . 3 Pick Up 228 | 3 18 2 6 1 18 15 1 15 . 1 . 1 14 . 12 8 5 . . 10 4 12 3 12 3 2 5 6 6 9 2 8 6 9 11 Fast Attach 293 | 7 3 . . . 7 11 1 11 3 2 1 5 10 2 12 4 2 . . 12 1 22 4 3 12 4 9 4 4 27 6 14 30 27 33 Attach 108 | . 1 . 1 . 4 7 5 13 . . . 1 4 . . 2 2 . . 6 . 6 4 3 1 2 6 5 3 5 1 4 1 4 17 Detach 36 | . . . . . . 2 . 1 . . . 1 . . 1 . . . . . . 2 1 3 1 1 . 6 1 3 . 2 1 2 8 Swap 373 | . 28 4 1 . 35 24 3 5 . 1 . 2 8 2 35 7 4 . 11 12 4 21 11 6 2 8 19 16 8 7 26 22 14 23 4 Drop 440 | . 10 . 5 1 25 23 14 29 4 2 1 6 17 2 23 13 6 . . 19 4 22 7 13 14 6 9 8 9 34 8 16 36 29 25 Fire 1132 | 17 61 3 . . 140 12 . 10 . . . 7 3 . 30 23 13 . 24 16 30 51 23 26 12 60 96 51 38 23 45 126 69 84 39 Melee 339 | . . . . . 4 58 . 26 2 4 . 4 24 3 60 4 . 1 1 26 . 67 4 5 . 6 13 . . . . 1 2 17 7 Ram 2 | . . . . . . . . . . . . . . . . . . . . . . 1 . . . . . . . . . . . 1 . Kick . | . . . . . . . . . . . . . . . . . . . . . . . . . . . . . . . . . . . . Crush . | . . . . . . . . . . . . . . . . . . . . . . . . . . . . . . . . . . . . Escape Stasis . | . . . . . . . . . . . . . . . . . . . . . . . . . . . . . . . . . . . . Rewire 67 | . . . . . . . . . . . . . . . . . . . 11 . . . 3 21 . . . . 10 17 5 . . . . Trap 127 | . . . . . . 3 . . . . . . . . . 19 3 . 1 . . 2 6 13 . 1 38 18 20 . 3 . . . . Miscellaneous . | . . . . . . . . . . . . . . . . . . . . . . . . . . . . . . . . . . . . Route ------- -11/Scrapyard -10/Materials (discovered 4 exits: *Mat x3 / [*Min]) -10/Mines (discovered 3 exits: *Mat x2 / *Exi) -10/Exiles -9/Mines -8/Materials (discovered 2 exits: *Fac x2) -7/Factory (discovered 2 exits: *Fac / *Low) -7/Waste -7/Factory (discovered 5 exits: *Fac x2 / Sto / *Low x2) -7/Lower Caves -7/Lower Caves (discovered 2 exits: *Fac / *Dat) -7/Data Miner -6/Proximity Caves -6/Factory -6/Waste -6/Factory (discovered 4 exits: *Fac x2 / *Low x2) -6/Lower Caves -6/Lower Caves (discovered 2 exits: *Fac / *Zio) -6/Zion -5/Proximity Caves -5/Factory -5/Waste -5/Factory (discovered 3 exits: *Fac / *Upp x2) -5/Upper Caves -5/Upper Caves (discovered 2 exits: *Fac / *Zhi) -5/Zhirov -4/Proximity Caves -4/Factory (discovered 5 exits: *Upp x2 / Ext x2 / *Arm) -4/Upper Caves -4/Upper Caves (discovered 2 exits: *Res / *War) -4/Warlord -3/Proximity Caves -3/Research (discovered 3 exits: *Res / *Tes x2) -3/Testing -2/Research (discovered 2 exits: *Acc x2) -1/Access To Epsilon Eridani History --------- Turn | Location | Event 10 | -11/Scrapyard | Discovered new exit (range 15) 114 | -11/Scrapyard | Entered Materials 350 | -10/Materials | Build established: Mutant 705 | -10/Materials | Discovered new exit (range 15) 820 | -10/Materials | Discovered new exit (range 12) 926 | -10/Materials | Discovered new exit (range 11) 1329 | -10/Materials | Discovered new exit (range 15) 1387 | -10/Materials | Entered Mines 1396 | -10/Mines | Met a Derelict bent on vengeance 1463 | -10/Mines | Identified exit to Materials 1842 | -10/Mines | Received a Mining Laser from a helpful Derelict 1953 | -10/Mines | Learned 2 Materials zone layouts 2010 | -10/Mines | Learned 2 Materials zone layouts 2029 | -10/Mines | Discovered exit to Materials (range 8) 2251 | -10/Mines | A weapon hastily lodged in a ceiling crevice suddenly fell to the ground 2327 | -10/Mines | Deemed a non-threat by the Exiles lab entrance 2327 | -10/Mines | Discovered new exit (range 5) 2333 | -10/Mines | Entered Exiles 2377 | -10/Exiles | Met 8R-AWN 2402 | -10/Exiles | Met EX-HEX 2446 | -10/Exiles | Met EX-BIN 2496 | -10/Exiles | Met EX-DEC 2502 | -10/Exiles | Learned location of Zion (-6) 2560 | -10/Exiles | Aligned with FarCom system 2561 | -10/Exiles | Given EX-Vault access code 2600 | -10/Exiles | Opened EX-Vault 2608 | -10/Exiles | Found Field Lobotomy Kit 2613 | -10/Exiles | Found Superbattery 2623 | -10/Exiles | Found AWS/Gauss 2654 | -10/Exiles | Warned to stay clear of 0b10 Research branches 2755 | -10/Exiles | Discovered new exit (range 10) 2769 | -10/Exiles | Stole three prototypes: Superbattery, AWS/Gauss, Field Lobotomy Kit 2769 | -10/Exiles | Entered Mines 2813 | -9/Mines | Identified exit to Materials 3141 | -9/Mines | Learned location of Storage (-7) 3149 | -9/Mines | Entered Materials 3149 | -8/Materials | Evolved 4 slots: Propulsion x1, Utility x3 3150 | -8/Materials | Identified exit to Factory 3523 | -8/Materials | Discovered exit to Factory (range 7) 4537 | -8/Materials | Garrison activated, responded to threat 4884 | -8/Materials | Entered Factory 4884 | -7/Factory | Evolved 2 slots: Propulsion x2 4886 | -7/Factory | FarCom data flow suspended 5281 | -7/Factory | Discovered new exit (range 6) 5285 | -7/Factory | Identified exit to Factory 5979 | -7/Factory | Discovered new exit (range 4) 5982 | -7/Factory | Identified exit to Lower Caves 6316 | -7/Factory | Sucked down chute 6316 | -7/Factory | Entered Waste 6331 | -7/Waste | EMP discharged 6331 | -7/Waste | Spotted C-40 Crusher 6340 | -7/Waste | Spotted C-40 Crusher 6346 | -7/Waste | Spotted C-40 Crusher 6356 | -7/Waste | Spotted C-40 Crusher 6358 | -7/Waste | Spotted C-40 Crusher 6359 | -7/Waste | Spotted C-40 Crusher 6359 | -7/Waste | Discovered new exit (range 16) 6378 | -7/Waste | Identified exit to Factory 6378 | -7/Waste | Entered Factory 6391 | -7/Factory | Identified exit to Storage 6452 | -7/Factory | Discovered exit to Factory (range 16) 6530 | -7/Factory | Repaired Broken Impulse Thruster? 6563 | -7/Factory | Build established: Sprinter 6570 | -7/Factory | Discovered exit to Factory (range 7) 6955 | -7/Factory | Central database locked down 7440 | -7/Factory | Entered Lower Caves 7577 | -7/Lower Caves | Identified exit to Lower Caves 7715 | -7/Lower Caves | Encountered a Warlord checkpoint 7725 | -7/Lower Caves | Entered another Lower Caves area 7774 | -7/Lower Caves | Discovered exit to Factory (range 3) 7866 | -7/Lower Caves | Entered an active Warlord outpost 7871 | -7/Lower Caves | Learned Factory garrison access intel 7871 | -7/Lower Caves | Learned Research terminal intel 7871 | -7/Lower Caves | Learned Armory security intel 8068 | -7/Lower Caves | Encountered a Warlord checkpoint 8070 | -7/Lower Caves | Learned Factory garrison access intel 8075 | -7/Lower Caves | Discovered new exit (range 5) 8076 | -7/Lower Caves | Identified exit to Data Miner 8138 | -7/Lower Caves | Entered Data Miner 8138 | -7/Data Miner | Discovered new exit (range 6) 8144 | -7/Data Miner | Met Data Miner 8148 | -7/Data Miner | Learned location of Section 7 (-2) 8148 | -7/Data Miner | Acquired the access code to Warlord's prototype stash 8152 | -7/Data Miner | Received God Mode back door access code from Data Miner 8159 | -7/Data Miner | Identified exit to Proximity Caves 8159 | -7/Data Miner | Entered Proximity Caves 8278 | -6/Proximity Caves | Spotted B-75 Beast 8355 | -6/Proximity Caves | Discovered exit to Factory (range 14) 8379 | -6/Proximity Caves | Learned Factory terminal intel 8520 | -6/Proximity Caves | Entered Factory 8520 | -6/Factory | Evolved 2 slots: Propulsion x1, Utility x1 8521 | -6/Factory | Loaded intel: 26 terminal locations 8522 | -6/Factory | Loaded intel: 4 garrison access locations 8649 | -6/Factory | Central database locked down 8743 | -6/Factory | Fabricated Imp. Launcher Guidance Computer? 8873 | -6/Factory | Build established: Mutant 9161 | -6/Factory | Manually triggered Chute Trap 9161 | -6/Factory | Sucked down chute 9161 | -6/Factory | Entered Waste 9194 | -6/Waste | Spotted C-40 Crusher 9194 | -6/Waste | Spotted C-40 Crusher 9194 | -6/Waste | Spotted C-40 Crusher 9197 | -6/Waste | Spotted C-40 Crusher 9209 | -6/Waste | Spotted C-40 Crusher 9218 | -6/Waste | Spotted C-40 Crusher 9222 | -6/Waste | Discovered new exit (range 16) 9226 | -6/Waste | Warlord forces began an assault 9230 | -6/Waste | Allies destroyed C-40 Crusher 9362 | -6/Waste | Identified exit to Factory 9411 | -6/Waste | Entered Factory 9411 | -6/Factory | Accompanied by 17 allies 9412 | -6/Factory | Loaded intel: 4 garrison access locations 9476 | -6/Factory | Discovered new exit (range 9) 9479 | -6/Factory | Identified exit to Lower Caves 9598 | -6/Factory | Lost 8 allies 9752 | -6/Factory | Found Powered Armor 9876 | -6/Factory | Discovered new exit (range 8) 9883 | -6/Factory | Identified exit to Factory 10083 | -6/Factory | Repaired Adv. Reaction Control System 10111 | -6/Factory | First assault squad dispatched 10412 | -6/Factory | Discovered exit to Factory (range 21) 10474 | -6/Factory | Watched by a mysterious "MATRIX" hacker 10518 | -6/Factory | Repaired Imp. Medium Armor Plating 10585 | -6/Factory | Build established: Scout 10873 | -6/Factory | Allied Derelicts emerged from ambush trap array 11137 | -6/Factory | Repaired Broken Cld. Aerolev Unit 11329 | -6/Factory | Entered Lower Caves 11441 | -6/Lower Caves | Entered a destroyed Warlord outpost 11445 | -6/Lower Caves | Learned Factory terminal intel 11512 | -6/Lower Caves | Learned Factory stockpile data 11778 | -6/Lower Caves | Build established: Trapper-Scout 11846 | -6/Lower Caves | Discovered new exit (range 9) 12118 | -6/Lower Caves | Identified exit to Lower Caves 12136 | -6/Lower Caves | Learned Factory stockpile data 12147 | -6/Lower Caves | Entered another Lower Caves area 12149 | -6/Lower Caves | Discovered exit to Factory (range 9) 12150 | -6/Lower Caves | Encountered a Warlord checkpoint 12218 | -6/Lower Caves | Attacked by a delusional Derelict stockpiling parts 12432 | -6/Lower Caves | Attracted the attention of an 0b10 checkpoint 12488 | -6/Lower Caves | Learned Factory emergency access door positions 12511 | -6/Lower Caves | Discovered new exit (range 11) 12513 | -6/Lower Caves | Encountered a Master Thief 12513 | -6/Lower Caves | Encountered a Master Thief 12514 | -6/Lower Caves | Encountered a Master Thief 12556 | -6/Lower Caves | Encountered a Master Thief 12557 | -6/Lower Caves | Encountered a Master Thief 13181 | -6/Lower Caves | Spotted B-75 Beast 13195 | -6/Lower Caves | Identified exit to Zion 13196 | -6/Lower Caves | Entered Zion 13209 | -6/Zion | Discovered new exit (range 19) 13224 | -6/Zion | Learned Factory stockpile data 13389 | -6/Zion | Given A8's code to call for help 13460 | -6/Zion | Received a hallucinogenic algorithm 13530 | -6/Zion | Met Imprinter 13538 | -6/Zion | Imprinted 13540 | -6/Zion | Declared Zion's savior 13772 | -6/Zion | Identified exit to Proximity Caves 13809 | -6/Zion | Entered Proximity Caves 13809 | -5/Proximity Caves | Accompanied by 4 allies 14105 | -5/Proximity Caves | Discovered exit to Factory (range 21) 14585 | -5/Proximity Caves | Attracted the attention of an 0b10 outpost 14868 | -5/Proximity Caves | Entered Factory 14868 | -5/Factory | Accompanied by 4 allies 14868 | -5/Factory | Evolved 2 slots: Power x1, Utility x1 14871 | -5/Factory | Loaded intel: 26 terminal locations 14881 | -5/Factory | Zion Hacking Resupply teleported in 15025 | -5/Factory | Retrieved Zion intel report: Trap Installations 15045 | -5/Factory | Retrieved Zion intel report: Emergency Access 15086 | -5/Factory | Retrieved Zion intel report: Prototype Schematics 15088 | -5/Factory | Spotted B-75 Beast 15317 | -5/Factory | Retrieved Zion intel report: Component Schematics 15318 | -5/Factory | Zion Heavy squad teleported in 15428 | -5/Factory | Discovered new exit (range 21) 15442 | -5/Factory | Identified exit to Factory 15531 | -5/Factory | Retrieved Zion intel report: Component Schematics 15532 | -5/Factory | Zion Heavy squad teleported in 15603 | -5/Factory | Found Zio. Weapon Casing 15627 | -5/Factory | Lost 3 allies 15757 | -5/Factory | Sucked down chute 15757 | -5/Factory | Entered Waste 15760 | -5/Waste | Spotted C-40 Crusher 15761 | -5/Waste | Spotted C-40 Crusher 15761 | -5/Waste | Spotted C-40 Crusher 15772 | -5/Waste | EMP discharged 15782 | -5/Waste | Destroyed C-40 Crusher 15807 | -5/Waste | Spotted C-40 Crusher 15849 | -5/Waste | Spotted C-40 Crusher 15851 | -5/Waste | Spotted C-40 Crusher 15872 | -5/Waste | EMP discharged 15872 | -5/Waste | System corruption reached 10% 15874 | -5/Waste | Discovered new exit (range 21) 15911 | -5/Waste | Identified exit to Factory 15912 | -5/Waste | Entered Factory 15948 | -5/Factory | Retrieved Zion intel report: Unaware Analyses 15951 | -5/Factory | Discovered new exit (range 5) 15953 | -5/Factory | Identified exit to Upper Caves 15958 | -5/Factory | Retrieved Zion intel report: Prototype Schematics 15990 | -5/Factory | Retrieved Zion intel report: Active Garrisons 15991 | -5/Factory | Zion Trap Resupply teleported in 16054 | -5/Factory | Discovered exit to Factory (range 16) 16054 | -5/Factory | Retrieved Zion intel report: Prototype Stockpiles 16055 | -5/Factory | Zion Heavy squad teleported in 16205 | -5/Factory | Discovered exit to Upper Caves (range 4) 16258 | -5/Factory | Found Zio. Weapon Casing 16505 | -5/Factory | Found Zio. Weapon Casing 16614 | -5/Factory | Destroyed 10 combat bots 16677 | -5/Factory | Retrieved Zion intel report: Component Stockpiles 16678 | -5/Factory | Zion Offense Resupply teleported in 16706 | -5/Factory | Found Imp. Powered Armor 16741 | -5/Factory | Retrieved Zion intel report: Unaware Analyses 16812 | -5/Factory | First assault squad dispatched 16931 | -5/Factory | Lost 4 parts (2p1u1w) 17045 | -5/Factory | Found Imp. Powered Armor 17283 | -5/Factory | Fabricated Adv. System Restoration Module (x2) 17334 | -5/Factory | Fabricated Cld. Gravmag System (x1) 17334 | -5/Factory | Terminal network hard line cut 17348 | -5/Factory | Entered Upper Caves 17350 | -5/Upper Caves | Learned Factory security intel 17403 | -5/Upper Caves | Found Prototype Special Weapon 17403 | -5/Upper Caves | Identified Exp. Plasma Cutter 17599 | -5/Upper Caves | Discovered new exit (range 7) 17601 | -5/Upper Caves | Identified exit to Upper Caves 17708 | -5/Upper Caves | Attracted the attention of an 0b10 checkpoint 17739 | -5/Upper Caves | Encountered a Warlord checkpoint 17814 | -5/Upper Caves | Attracted the attention of an 0b10 base 17854 | -5/Upper Caves | Learned Factory garrison access intel 18126 | -5/Upper Caves | Entered another Upper Caves area 18126 | -5/Upper Caves | Accompanied by 1 ally 18170 | -5/Upper Caves | Spotted B-75 Beast 18276 | -5/Upper Caves | Discovered exit to Factory (range 5) 18346 | -5/Upper Caves | Destroyed B-75 Beast 18476 | -5/Upper Caves | Encountered a Master Thief 18503 | -5/Upper Caves | Build established: Scout 18509 | -5/Upper Caves | Encountered a Master Thief 18510 | -5/Upper Caves | Encountered a Master Thief 18533 | -5/Upper Caves | Adv. Trap Extractor stolen by Master Thief 19167 | -5/Upper Caves | Learned Factory trap positions 19172 | -5/Upper Caves | Learned 4 Factory zone layouts 19302 | -5/Upper Caves | Attacked by a delusional Derelict stockpiling Unaware 19515 | -5/Upper Caves | Discovered new exit (range 6) 19517 | -5/Upper Caves | Identified exit to Zhirov 19638 | -5/Upper Caves | Entered Zhirov 19638 | -5/Zhirov | Accompanied by 4 allies 19638 | -5/Zhirov | Discovered new exit (range 3) 19652 | -5/Zhirov | Met Zhirov 19661 | -5/Zhirov | Learned location of Quarantine (-2) 19661 | -5/Zhirov | Learned location of Testing (-3) 19661 | -5/Zhirov | Learned location of Command (-1) 19664 | -5/Zhirov | Zhirov requested help retrieving the SGEMP Prototype 19671 | -5/Zhirov | Found Alien Artifact 19671 | -5/Zhirov | Identified Integrated Reactor 19671 | -5/Zhirov | Installed Integrated Reactor, increased core energy generation (+10) 19678 | -5/Zhirov | Found Alien Artifact 19813 | -5/Zhirov | Identified exit to Proximity Caves 19815 | -5/Zhirov | Build established: Commander-Scout 19823 | -5/Zhirov | Entered Proximity Caves 19823 | -4/Proximity Caves | Accompanied by 4 allies 19825 | -4/Proximity Caves | Spotter reported a threat 19826 | -4/Proximity Caves | Spotter reported a threat 20045 | -4/Proximity Caves | Lost 4 allies 20246 | -4/Proximity Caves | Spotted B-86 Titan 20279 | -4/Proximity Caves | Build established: Scout 20360 | -4/Proximity Caves | Discovered exit to Factory (range 7) 20368 | -4/Proximity Caves | Entered Factory 20368 | -4/Factory | Evolved 2 slots: Propulsion x1, Utility x1 20369 | -4/Factory | Identified exit to Armory 20371 | -4/Factory | Loaded intel: 88 trap records 20374 | -4/Factory | Loaded intel: 4 garrison access locations 20435 | -4/Factory | Retrieved Zion intel report: Prototype Stockpiles 20564 | -4/Factory | Retrieved Zion intel report: Unaware Analyses 20628 | -4/Factory | Repaired Cld. Plasma Cannon 20640 | -4/Factory | Identified Transdimensional Reconstructor 20700 | -4/Factory | Retrieved Zion intel report: Active Garrisons 20868 | -4/Factory | Search patrols dispatched 20871 | -4/Factory | Discovered new exit (range 4) 20934 | -4/Factory | Repaired Imp. Propulsion Shielding 21018 | -4/Factory | Build established: Mutant 21038 | -4/Factory | Retrieved Zion intel report: Branch Access 21038 | -4/Factory | Identified exit to Upper Caves 21038 | -4/Factory | Identified exit to Extension 21039 | -4/Factory | Zion Hacker squad teleported in 21079 | -4/Factory | Garrison activated, responded to threat 21121 | -4/Factory | Lost 3 allies 21418 | -4/Factory | Fabricated Y-72 Warden (x2) 21454 | -4/Factory | P-70 Sage assimilated allied Warden 7a 21491 | -4/Factory | Entered Upper Caves 21491 | -4/Upper Caves | Accompanied by 1 ally 21947 | -4/Upper Caves | Build established: Scientist-Mutant 22263 | -4/Upper Caves | Attracted the attention of an 0b10 base 22395 | -4/Upper Caves | Learned Research terminal intel 22395 | -4/Upper Caves | Learned Extension trap positions 22395 | -4/Upper Caves | Learned 8 Factory zone layouts 22526 | -4/Upper Caves | Entered an active Warlord outpost 22526 | -4/Upper Caves | A Commander dispatched an escort 22530 | -4/Upper Caves | Learned Factory emergency access door positions 22530 | -4/Upper Caves | Learned Armory trap positions 22567 | -4/Upper Caves | Discovered new exit (range 8) 22728 | -4/Upper Caves | Build established: Scavenger-Mutant 22894 | -4/Upper Caves | Attracted the attention of an 0b10 checkpoint 22969 | -4/Upper Caves | Entered another Upper Caves area 22970 | -4/Upper Caves | Identified exit to Warlord 22992 | -4/Upper Caves | Discovered new exit (range 11) 23257 | -4/Upper Caves | Learned 4 Research zone layouts 23390 | -4/Upper Caves | Build established: Trapper-Mutant 23648 | -4/Upper Caves | Spotted B-86 Titan 23687 | -4/Upper Caves | Destroyed B-86 Titan 23861 | -4/Upper Caves | Entered Warlord 23963 | -4/Warlord | Opened Warlord's prototype stash 23972 | -4/Warlord | Found Prototype Device 23972 | -4/Warlord | Identified Exp. Focal Shield 23975 | -4/Warlord | Found Prototype Processor 23975 | -4/Warlord | Identified Exp. Targeting Computer 23979 | -4/Warlord | Found Prototype Processor 23979 | -4/Warlord | Identified Exp. Core Analyzer 23983 | -4/Warlord | Found Prototype Reactor 23983 | -4/Warlord | Identified Vortex Chain Reactor 23987 | -4/Warlord | Found Prototype Hackware 24045 | -4/Warlord | Identified Ghost Barrier 24082 | -4/Warlord | Received a Watcher feed algorithm from an ecstatic Tinkerer 24151 | -4/Warlord | Warlord's base attacked by MAIN.C 24304 | -4/Warlord | Found Prototype Energy Gun 24304 | -4/Warlord | Identified Vortex Rifle 24306 | -4/Warlord | Found Prototype Energy Cannon 24306 | -4/Warlord | Identified Vortex Driver 24309 | -4/Warlord | Found Prototype Piercing Weapon 24309 | -4/Warlord | Identified Vortex Lance 24312 | -4/Warlord | Found Prototype Launcher 24312 | -4/Warlord | Identified Vortex Catalyst Activator 24317 | -4/Warlord | Found Vortex Lance 24501 | -4/Warlord | Warlord forces counterattacked 24523 | -4/Warlord | Spotted Striker 24546 | -4/Warlord | Spotted Striker 24547 | -4/Warlord | Spotted Executioner 24574 | -4/Warlord | Destroyed Executioner 24606 | -4/Warlord | Spotted Executioner 24612 | -4/Warlord | Destroyed Executioner 24652 | -4/Warlord | Spotted Executioner 24674 | -4/Warlord | Destroyed Executioner 24716 | -4/Warlord | Lost 34 allies 24771 | -4/Warlord | Rebuked by Warlord 24826 | -4/Warlord | Warlord base infiltrated, sounded retreat 24827 | -4/Warlord | Enhanced Grunt warped into view 24827 | -4/Warlord | Enhanced Grunt warped into view 24827 | -4/Warlord | Enhanced Grunt warped into view 24827 | -4/Warlord | Enhanced Demolisher warped into view 24827 | -4/Warlord | Enhanced Demolisher warped into view 24827 | -4/Warlord | Enhanced Demolisher warped into view 24905 | -4/Warlord | Spotted Striker 24906 | -4/Warlord | Spotted Striker 24914 | -4/Warlord | Spotted Striker 25037 | -4/Warlord | Spotted Striker 25042 | -4/Warlord | Lost 3 allies 25061 | -4/Warlord | Spotted Executioner 25062 | -4/Warlord | Spotted Striker 25063 | -4/Warlord | Spotted Striker 25065 | -4/Warlord | Destroyed Executioner 25078 | -4/Warlord | Spotted B-90 Cyclops 25081 | -4/Warlord | Spotted B-86 Titan 25094 | -4/Warlord | Spotted Striker 25111 | -4/Warlord | Found Prototype Device 25111 | -4/Warlord | Identified Exp. Shock Absorption System 25122 | -4/Warlord | Spotted Striker 25141 | -4/Warlord | Destroyed Striker 25151 | -4/Warlord | Spotted Striker 25151 | -4/Warlord | Spotted B-90 Cyclops 25159 | -4/Warlord | Spotted B-86 Titan 25160 | -4/Warlord | Spotted Executioner 25169 | -4/Warlord | Found Exp. Core Analyzer 25173 | -4/Warlord | Spotted Striker 25193 | -4/Warlord | Discovered new exit (range 12) 25244 | -4/Warlord | Entered Proximity Caves 25244 | -3/Proximity Caves | Accompanied by 2 allies 25247 | -3/Proximity Caves | Lost 29 allies 25323 | -3/Proximity Caves | Attracted the attention of an 0b10 outpost 25411 | -3/Proximity Caves | Unaware initiated a cargo recovery operation 25462 | -3/Proximity Caves | Spotted B-86 Titan 25494 | -3/Proximity Caves | Assimilated B-86 Titan with FLK Orb 25494 | -3/Proximity Caves | Spotted Executioner 25499 | -3/Proximity Caves | P-80 Master assimilated allied Archangel 7b 25524 | -3/Proximity Caves | Destroyed Executioner 25562 | -3/Proximity Caves | Attracted the attention of an 0b10 checkpoint 25608 | -3/Proximity Caves | Found Prototype Device 25608 | -3/Proximity Caves | Identified Exp. Sensor Array 25615 | -3/Proximity Caves | Found Prototype Device 25615 | -3/Proximity Caves | Identified Exp. Weapon Cycler 25627 | -3/Proximity Caves | Found Exp. Sensor Array 25856 | -3/Proximity Caves | Build established: Scavenger-Mutant 26024 | -3/Proximity Caves | Discovered new exit (range 9) 26443 | -3/Proximity Caves | Entered Research 26443 | -3/Research | Accompanied by 1 ally 26443 | -3/Research | Evolved 2 slots: Utility x2 26445 | -3/Research | Loaded intel: 22 terminal locations 26602 | -3/Research | Retrieved Zion intel report: Unaware Analyses 26659 | -3/Research | Spotted B-86 Titan 26660 | -3/Research | Discovered new exit (range 22) 26661 | -3/Research | Retrieved Zion intel report: Component Stockpiles 26662 | -3/Research | Zion Heavy squad teleported in 26668 | -3/Research | Allies destroyed B-86 Titan 26683 | -3/Research | Retrieved Zion intel report: Active Terminals 26684 | -3/Research | Zion Hacker squad teleported in 26813 | -3/Research | Lost 3 allies 26920 | -3/Research | Lost 3 allies 27020 | -3/Research | Build established: Trapper-Mutant 27163 | -3/Research | Discovered new exit (range 14) 27193 | -3/Research | First assault squad dispatched 27198 | -3/Research | Zion Heavy squad teleported in 27269 | -3/Research | Spotted B-86 Titan 27295 | -3/Research | Discovered new exit (range 5) 27339 | -3/Research | Found Zio. Weapon Casing 27344 | -3/Research | Destroyed 10 combat bots 27351 | -3/Research | Found Zio. Heavy Carapace 27469 | -3/Research | Entered Testing 27488 | -3/Testing | Found Prototype Protection 27488 | -3/Testing | Identified SHELL Armor 27507 | -3/Testing | Retrieved Zion intel report: Guard Positions 27514 | -3/Testing | Retrieved Zion intel report: Prototype Stockpiles 27534 | -3/Testing | Retrieved Zion intel report: Unaware Schematics 27560 | -3/Testing | Assimilated C-55 Analyst with FLK Orb 27571 | -3/Testing | Found Cld. Nova Cannon 27604 | -3/Testing | Found Hpw. Disruptor Cannon 27620 | -3/Testing | Retrieved Zion intel report: Emergency Access 27637 | -3/Testing | Retrieved Zion intel report: Unaware Schematics 27659 | -3/Testing | Spotted Striker 27664 | -3/Testing | Spotted Striker 27681 | -3/Testing | Retrieved Zion intel report: Active Garrisons 27689 | -3/Testing | Found Prototype Hackware 27710 | -3/Testing | Found Prototype Hackware 27710 | -3/Testing | Identified Exp. Hacking Suite 27719 | -3/Testing | First assault squad dispatched 27751 | -3/Testing | Found Prototype Launcher 27751 | -3/Testing | Identified Z-bomb Delivery System 27950 | -3/Testing | Found Prototype Energy Cannon 27950 | -3/Testing | Identified Null Cannon 28044 | -3/Testing | Discovered new exit (range 15) 28053 | -3/Testing | Retrieved Zion intel report: Branch Access 28062 | -3/Testing | Enhanced Grunt warped into view, answering call for help 28068 | -3/Testing | Found Prototype Ballistic Cannon 28068 | -3/Testing | Identified Omega Cannon 28075 | -3/Testing | Enhanced Grunt warped into view, answering call for help 28193 | -3/Testing | Destroyed 9 combat bots 28248 | -3/Testing | Incoming assault squad redirected 28256 | -3/Testing | Entered Research 28256 | -2/Research | Evolved 2 slots: Propulsion x1, Utility x1 28256 | -2/Research | Identified System Mapper 28257 | -2/Research | Loaded intel: 20 terminal locations 28298 | -2/Research | Garrison activated, responded to threat 28454 | -2/Research | Zion Light squad teleported in 28489 | -2/Research | Zion Experimental squad teleported in 28495 | -2/Research | Found Zio. Weapon Casing 28526 | -2/Research | Lost 3 allies 28649 | -2/Research | Retrieved Zion intel report: Prototype Stockpiles 28756 | -2/Research | First assault squad dispatched 28833 | -2/Research | High security lockdown imminent 28859 | -2/Research | Found Prototype Protection 28859 | -2/Research | Identified Centrium Heavy Armor Plating 28894 | -2/Research | Found Prototype Device 28894 | -2/Research | Identified Exp. ECM Suite 28898 | -2/Research | Found Prototype Processor 28898 | -2/Research | Identified Exp. Terrain Scan Processor 28913 | -2/Research | High security lockdown engaged 29037 | -2/Research | Found Zio. Weapon Casing 29065 | -2/Research | Discovered new exit (range 10) 29084 | -2/Research | Identified exit to Access 29381 | -2/Research | Discovered exit to Access (range 15) 29466 | -2/Research | Warped through subspace 29522 | -2/Research | Spotted Investigator 29523 | -2/Research | Assimilated Investigator with FLK Orb 29529 | -2/Research | Spotted Striker 29542 | -2/Research | Spotted Executioner 29601 | -2/Research | Core integrity fell below 50% 29602 | -2/Research | Entered Access 29602 | -1/Access | Evolved 2 slots: Utility x2 29632 | -1/Access | Lost 12 parts (2p6n4u) 29813 | -1/Access | Spotted B-99 Colossus 29815 | -1/Access | Zion hero teleported in (CL-ANK) 29852 | -1/Access | First assault squad dispatched 29868 | -1/Access | High security lockdown imminent 29868 | -1/Access | Destroyed B-99 Colossus 29895 | -1/Access | Lost 3 parts (1p2u) 29921 | -1/Access | Found Prototype Device 29921 | -1/Access | Identified Exp. Shield Generator 29948 | -1/Access | High security lockdown engaged 29994 | -1/Access | Lost 4 parts (1p2n1w) 30021 | -1/Access | Spotted Executioner 30021 | -1/Access | Spotted Executioner 30054 | -1/Access | Lost 4 parts (1p1n2u) 30142 | -1/Access | Spotted B-99 Colossus 30171 | -1/Access | Spotted B-99 Colossus 30171 | -1/Access | Assimilated B-99 Colossus with FLK Orb 30183 | -1/Access | Destroyed B-99 Colossus 30196 | -1/Access | Discovered new exit (range 10) 30271 | -1/Access | Build established: Trapper-Sprinter 30329 | -1/Access | Spotted Striker 30330 | -1/Access | Spotted Striker 30333 | -1/Access | Destroyed Striker 30338 | -1/Access | Spotted Investigator 30338 | -1/Access | P-80 Master assimilated allied Colossus 10a 30339 | -1/Access | Identified exit to Surface 30340 | *** | Escaped! Last Messages --------------- 30326_ Slug penetrates C-45 Heavy ARC. 30326_ C-45 Heavy ARC bursts open, deploying its payload. 30326_ G-73 Enforcer unfolds itself. 30326_ L-61 Swordsman unfolds itself. 30326_ G-73 Enforcer unfolds itself. 30326_ E-15 Imp unfolds itself. 30330_ E-15 Imp destroyed. 30331_ L-61 Swordsman knocked back. 30332_ G-73 Enforcer Lgt. Quantum Reactor blasted off. 30332_ G-73 Enforcer knocked back. 30332_ Slug penetrates G-73 Enforcer. 30333_ Destroyed Lgt. Quantum Reactor. 30333_ Striker suffers critical hit (Meltdown). 30338_ Investigator: "PRIMARY THREAT IDENTIFIED. CONTAINMENT PROTOCOL APPLICABLE." 30338_ P-80 Master hacks Colossus 10a, assimilated. 30339_ EXIT=IDENTIFIED: SURFACE Map ----- +----------------------------------------------------+ | ?# #?????????# #????????????????????????? | | ?# #?????????# ###??????????????????????? | | # ########### ####?????????????????????? | | # % #?????????????????????? | | + ^ #?????????????????????? | | # #?????????????????????? | | # #?????????????????????? | | ?####+#################%"% #?????????????????????? | | ????# * #????????#g]Kg#?????????????????????? | | ????# #?????####pg! ####??????????????????? | | ????# #?????# % c #??????????????????? | | ????# #?????# #??????????????????? | | ????# #?????#% % #??????????????????? | | ????# #?????# % #??????????????????? | | ????# ] #?????#%% B/l * #??????????????????? | | ????# #?????# B% % #??????????????????? | | ????# #?????#%% #??????????????????? | | ????########"#?????#"""" """""#??????????????????? | | ??????????? ?????????" "???????????????????????? | | ??????????? #????????" "???????????????????????? | | ??????????# #????#"""" """""#??????????????????? | | ??????????# #????# #??????????????????? | | ??????????# #????# "" """ #??????????????????? | | ??????????#####????# ?" "?????????????????????? | | ???????????????????#??" "" "?????????????????????? | | ??????????????????????" "@ "?????????????????????? | | ??????????????????????" "?????????????????????? | | ??????????????????????""""""?????????????????????? | | ?????????????????????????????????????????????????? | | ?????????????????????????????????????????????????? | | ?????????????????????????????????????????????????? | | ?????????????????????????????????????????????????? | | ?????????Y?Y?????????????????????????????????????? | | ?????????????????????????????????????????????????? | | ?????????????????????????????????????????????????? | | ?????????????????????????????????????????????????? | | ?????????????????????????????????????????????????? | | ?????????????????????????????????????????????????? | | ????????????????R????k???????????????????????????? | | ????????????????????????????????k????????????????? | | ?????????????????????????????????????????????????? | | ?????????????????????????????????????????????????? | | ?????????????????????????????????????????????????? | | ?????????????????????????????????????????????????? | | ?????????????????????????????????????????????????? | | ?????????????????????????????????????????????????? | | ?????????????????????????????????????????????????? | | ?????????????????????????????????????????????????? | | ?????????????????????????????????????????????????? | | ?????????????????????????????????????????????????? | +----------------------------------------------------+ Best States ------------- Heat Dissipation 139 Coolant Potential 120 Energy Generation 65 Energy Capacity 1670 Matter Stores 300 Matter Capacity 300 Sight Range 23 Robot Scan Range 20 Terrain Scan Density 210 ECM Strength 1 Cloak Strength 4 Additional Mass Support 9 Base Temperature (-) 200 Corruption Block 8 Armor Coverage 1200 Resistance: KI 30 Resistance: TH 30 Resistance: EM 20 Propulsion Shielding 66 Utility Shielding 66 Weapon Shielding 100 Evasion (%) 70 Targeting Accuracy 20 Launcher Accuracy 40 Core Analysis 11 Recoil Reduction 2 Offensive Hacking 30 Defensive Hacking 20 Authchip Count 3 Trap Extractor Capacity 8 Item Schematics ----------------- Launcher Guidance Computer | -7/Factory | Hacked Combat Drone Bay | -7/Data Miner | Free Lgt. Regenerative Plating | -7/Data Miner | Free Cld. Cesium-ion Thruster | -7/Data Miner | Free Gravity Neutralizer | -7/Data Miner | Free Antimatter Cannon | -7/Data Miner | Free Gyrokinetic Inverter | -7/Data Miner | Free Imp. Launcher Guidance Computer | -7/Data Miner | Free Variable Charge Gun | -7/Data Miner | Free Nuclear Pulse Thruster | -7/Data Miner | Free Myomer Leg | -7/Data Miner | Free Imp. Medium Armor Plating | -6/Factory | Scanalyzed Imp. Cryofiber Web | -6/Factory | Hacked F-cell Engine | -6/Factory | Scanalyzed Neutrino Core | -6/Zion | Archive Angular Momentum Engine | -6/Zion | Archive Imp. Component Analysis Suite | -6/Zion | Archive Adv. Melee Analysis Suite | -6/Zion | Archive Lrn. Proton Cannon | -6/Zion | Archive Fission Core | -6/Zion | Archive Imp. Remote Force Field | -6/Zion | Archive Phase Gun | -6/Zion | Archive Coil Gun | -6/Zion | Archive Adv. Plasma Cannon | -6/Zion | Archive IFF Parser | -6/Zion | Archive Remote Force Field | -6/Zion | Archive Imp. Transmission Jammer | -6/Zion | Archive Ripper | -6/Zion | Free Slug Cannon | -6/Zion | Free Hvy. Riot Gun | -6/Zion | Free Flamer | -6/Zion | Free Battle Cannon | -6/Zion | Free Imp. Energy Well | -5/Factory | Z-intel Enh. Armored Leg | -5/Factory | Z-intel Multireflex Exoskeleton | -5/Factory | Z-intel Cld. VTOL Module | -5/Factory | Z-intel Biomechanical Wings | -5/Factory | Z-intel Tiamat Missile Launcher | -5/Factory | Z-intel Exp. Heat Sink | -5/Factory | Z-intel Hvy. Proton Cannon | -5/Factory | Z-intel Cld. Gravmag System | -5/Factory | Z-intel Imp. Heavy Laser | -5/Factory | Z-intel Scatter Rocket Array | -5/Factory | Z-intel Imp. Melee Analysis Suite | -5/Factory | Z-intel Powered Hammer | -5/Factory | Z-intel Energy Filter | -5/Factory | Z-intel Sml. Matter Pod | -5/Factory | Z-intel Lyr. Light Armor Plating | -5/Factory | Z-intel Linear Gravjet | -5/Factory | Z-intel Adv. Heat Sink | -5/Factory | Z-intel Lrn. Tractor Beam | -5/Factory | Z-intel Imp. Kinecellerator | -5/Factory | Z-intel Dynamic Insulation System | -5/Factory | Z-intel Great Axe | -5/Factory | Z-intel Imp. Targeting Computer | -5/Factory | Z-intel Great Maul | -5/Factory | Z-intel Mass Driver | -5/Factory | Z-intel Imp. Deuterium Engine | -5/Factory | Z-intel Imp. Plasma Cutter | -5/Factory | Z-intel Microactuators | -5/Factory | Z-intel Axe | -5/Factory | Z-intel Adv. Field Recycling Unit | -5/Factory | Z-intel ECM Suite | -5/Factory | Z-intel Imp. Signal Interpreter | -5/Factory | Z-intel System Guard | -5/Factory | Z-intel Remote Datajack | -5/Factory | Z-intel Imp. System Shield | -5/Factory | Z-intel Thunder Leg | -5/Factory | Z-intel Imp. Datajack | -5/Factory | Z-intel Lgt. Neutrino Core | -5/Factory | Z-intel Cld. Fission Core | -5/Factory | Z-intel Prc. Grenade Launcher | -5/Factory | Z-intel Hvy. Gatling Laser | -5/Factory | Z-intel Enh. Nuclear Core | -5/Factory | Z-intel Smartbomb Launcher | -5/Factory | Z-intel Enh. Coil Gun | -5/Factory | Z-intel Fusion Reactor | -5/Factory | Z-intel Imp. Matter Compressor | -5/Factory | Z-intel Imp. KE Penetrator | -5/Factory | Z-intel Mni. Assault Cannon | -5/Factory | Z-intel Imp. Heavy Machine Gun | -5/Factory | Z-intel Adv. System Restoration Module | -5/Factory | Scanalyzed Imp. Arc Thrower | -5/Zhirov | Free Exp. Optical Array | -5/Zhirov | Free Assault Drone Bay | -5/Zhirov | Free Centrium Light Armor Plating | -3/Testing | Archive Cld. Nuclear Pulse Thruster | -3/Testing | Archive Prc. Phase Gun | -3/Testing | Archive Exp. Weapon Shielding | -3/Testing | Archive Robot Schematics ------------------ M-13 Machinist | -10/Materials | Hacked M-28 Smith | -7/Data Miner | Free G-50 Soldier | -7/Data Miner | Free R-10 Processor | -7/Data Miner | Free G-47 Trooper | -7/Data Miner | Free T-07 Excavator | -6/Zion | Archive E-15 Imp | -6/Zion | Archive L-41 Fighter | -6/Zion | Archive Y-72 Warden | -6/Zion | Archive W-44 Eye | -3/Testing | Z-intel G-67 Veteran | -3/Testing | Z-intel P-70 Sage | -3/Testing | Z-intel B-60 Warrior | -3/Testing | Z-intel L-61 Swordsman | -3/Testing | Z-intel K-01 Serf | -3/Testing | Z-intel S-43 Plague | -3/Testing | Z-intel B-74 Champion | -3/Testing | Z-intel Fabricated ------------ Imp. Launcher Guidance Computer | x2 | -6/Factory Adv. System Restoration Module | x2 | -5/Factory | Authchip Cld. Gravmag System | x1 | -5/Factory | Authchip Y-72 Warden | x2 | -4/Factory Repaired ---------- Impulse Thruster | 55% | -7/Factory | Broken Adv. Reaction Control System | 50% | -6/Factory Imp. Medium Armor Plating | 58% | -6/Factory Cld. Aerolev Unit | 51% | -6/Factory | Broken Cld. Plasma Cannon | 9% | -4/Factory Imp. Propulsion Shielding | 33% | -4/Factory Studied --------- Hvy. Flail | -8/Materials | Hacked Arm. Wheel | -8/Materials | Hacked Lgt. Treads | -8/Materials | Hacked Arm. Huge Wheel | -7/Factory | Hacked Mic. Nuclear Core | -7/Factory | Hacked Airjet | -6/Factory | Hacked Gravmag Array | -6/Factory | Hacked Lrn. Missile Launcher | -6/Factory | Hacked Neutrino Core | -5/Factory | Hacked Imp. Antigrav System | -4/Factory | Hacked Mic. Fission Core | -4/Factory | Hacked Antigrav Array | -3/Testing | Hacked Mic. Antimatter Reactor | -3/Testing | Hacked Cmb. Linear Gravjet | -2/Research | Hacked Alien Tech Used ----------------- Integrated Reactor Transdimensional Reconstructor Achievements -------------- Minesweeper Challenges ------------ None Game ------ Seed UtilityChargeAutopenentrator Manual? 1 Play Time 07:32:07 Cumulative 997.4 hours Start 2026.08.06 @ 21:13:22 End 2026.08.07 @ 23:11:10 Sessions 3 Manual Loads 0 Difficulty Rogue Special Mode None Game No. 273 Rogue 273 Adventurer 0 Explorer 0 Win Type 0 Total 43 Types 13/9/10/1/2/0/4/1/1/2 Lore% 97 Gallery% 91 Achievement% 87 Wizard Run 0 Options --------- Layout 1 ASCII 0 Keyboard 0 Movement Mouse Keybinds 0 Fullscreen 2 Font 32/SmallcapsGlow Map View 50x35 Zoom Use 0% Tactical HUD 1 Map Filters NONE Filters NONE Steam 1 RUN: c7b3af6a-85a7-4b81-bd12-3b97208d23d9